{"text_format":"1","workbook":"xlsx","n_sheets":7,"sheets":["Cover","Navigator","Style Guide","Model Parameters","Data","PnF_CSE","Error Checks"],"not_rendered":{"charts":0,"images":1,"macros":0,"external_links":0,"defined_names":31,"comments":0,"pivot_tables":0},"unopened":[],"bounds":{"document_bytes":16777216,"sheet_cells":100000,"rows_first":2000,"rows_last":500,"rows_between":2000,"halvings":0,"cell_chars":16384,"cell_head_chars":4096},"cells_cut":0,"cells_raw":0,"read":"whole","date_system":"1900"}

{"sheet":"Cover","index":0,"n_rows":22,"n_cols":7,"rows_kept":22,"cut":false,"hidden":false,"merged":[[16,2,16,9],[17,2,17,9],[20,6,20,8],[21,6,21,8]]}
[]
[]
["Navigator"]
[]
[null,null,{"$f":"Client_Name","v":"SumProduct Pty Limited"}]
[null,null,{"$f":"Model_Name","v":"SP Point and Figure Chart - Initial File.xlsm"}]
[]
[]
[]
[]
[]
[]
[]
[null,null,"Primary Developer:  Sam Ngo"]
[]
[null,null,"General Cover Notes:"]
[null,null,"Point and Figure Charts - initial file."]
[]
[]
[]
[null,null,"Any queries, please e-mail:",null,null,null,"sam.ngo@sumproduct.com"]
[null,null,"Website:",null,null,null,"www.sumproduct.com"]

{"sheet":"Navigator","index":1,"n_rows":14,"n_cols":7,"rows_kept":14,"cut":false,"hidden":false,"merged":[]}
["Navigator"]
[{"$f":"Model_Name","v":"SP Point and Figure Chart - Initial File.xlsm"}]
["Navigator"]
[null,null,null,null,"Error Checks:",null,{"$f":"Overall_Error_Check","v":0}]
[]
[]
[null,1,"Table of Contents"]
[]
[null,null,null,null,null,"Cover"]
[null,null,null,null,null,"Style Guide"]
[null,null,null,null,null,"Model Parameters"]
[null,null,null,null,null,"Data"]
[null,null,null,null,null,"PnF_CSE"]
[null,null,null,null,null,"Error Checks"]

{"sheet":"Style Guide","index":2,"n_rows":74,"n_cols":11,"rows_kept":74,"cut":false,"hidden":false,"merged":[[16,2,16,6],[2,0,2,4],[7,2,7,6],[8,2,8,6],[9,2,9,6],[10,2,10,6],[11,2,11,6],[12,2,12,6],[13,2,13,6],[14,2,14,6],[15,2,15,6],[34,2,34,6],[17,2,17,6],[18,2,18,6],[19,2,19,6],[24,2,24,6],[25,2,25,6],[26,2,26,6],[27,2,27,6],[28,2,28,6],[29,2,29,6],[30,2,30,6],[31,2,31,6],[46,2,46,6],[35,2,35,6],[36,2,36,6],[37,2,37,6],[38,2,38,6],[39,2,39,6],[40,2,40,6],[41,2,41,6],[42,2,42,6],[43,2,43,6],[44,2,44,6],[45,2,45,6],[61,2,61,6],[47,2,47,6],[48,2,48,6],[49,2,49,6],[50,2,50,6],[51,2,51,6],[52,2,52,6],[53,2,53,6],[54,2,54,6],[57,2,57,6],[59,2,59,6],[60,2,60,6],[73,2,73,6],[62,2,62,6],[63,2,63,6],[64,2,64,6],[65,2,65,6],[66,2,66,6],[67,2,67,6],[68,2,68,6],[69,2,69,6],[70,2,70,6],[71,2,71,6],[72,2,72,6],[80,2,80,6],[74,2,74,6],[75,2,75,6],[76,2,76,6],[77,2,77,6],[78,2,78,6],[79,2,79,6]]}
[{"$f":"IF(ISERROR(RIGHT(CELL(\"filename\",A1),LEN(CELL(\"filename\",A1))-FIND(\"]\",CELL(\"filename\",A1)))),\n\"\",\nRIGHT(CELL(\"filename\",A1),LEN(CELL(\"filename\",A1))-FIND(\"]\",CELL(\"filename\",A1))))","v":"Style Guide"}]
[{"$f":"Model_Name","v":"SP Point and Figure Chart - Initial File.xlsm"}]
["Navigator"]
[null,null,null,null,"Error Checks:",null,null,null,{"$f":"Overall_Error_Check","v":0}]
[]
[null,{"$f":"MAX($B$5:$B5)+1","v":1},"Formatting of Headers / Dividers"]
[]
[null,null,"Description",null,null,null,null,null,"Display",null,"Style Name"]
[]
[null,null,"Sheet Title",null,null,null,null,null,{"$f":"C10","v":"Sheet Title"},null,"Sheet Title"]
[null,null,"Model Name",null,null,null,null,null,{"$f":"C11","v":"Model Name"},null,"Model Name"]
[]
[null,null,"Header 1",null,null,null,null,null,{"$f":"C13","v":"Header 1"},null,"Header 1"]
[null,null,"Header 2",null,null,null,null,null,{"$f":"C14","v":"Header 2"},null,"Header 2"]
[null,null,"Header 3",null,null,null,null,null,{"$f":"C15","v":"Header 3"},null,"Header 3"]
[null,null,"Header 4",null,null,null,null,null,{"$f":"C16","v":"Header 4"},null,"Header 4"]
[]
[null,null,"Notes",null,null,null,null,null,{"$f":"C18","v":"Notes"},null,"Notes"]
[]
[null,null,"Table Heading",null,null,null,null,null,{"$f":"C20","v":"Table Heading"},null,"Table Heading"]
[]
[]
[null,{"$f":"MAX($B$5:$B22)+1","v":2},"Individual Cell Styles"]
[]
[null,null,"Description",null,null,null,null,null,"Display",null,"Style Name"]
[]
[null,null,"Assumption",null,null,null,null,null,"Assumption",null,{"$f":"C27","v":"Assumption"}]
[]
[null,null,"Constraint",null,null,null,null,null,{"$f":"C29","v":"Constraint"},null,{"$f":"C29","v":"Constraint"}]
[]
[null,null,"Empty",null,null,null,null,null,null,null,{"$f":"C31","v":"Empty"}]
[]
[null,null,"Error Check",null,null,null,null,null,0,null,{"$f":"C33","v":"Error Check"}]
[]
[null,null,"Hyperlink",null,null,null,null,null,"Hyperlink",null,{"$f":"C35","v":"Hyperlink"}]
[]
[null,null,"Internal Reference",null,null,null,null,null,{"$f":"'Error Checks'!E12","v":"Example"},null,{"$f":"C37","v":"Internal Reference"}]
[]
[null,null,"Line Calculation",null,null,null,null,null,77,null,"Line Calc"]
[]
[null,null,"Line Total",null,null,null,null,null,{"$f":"I39","v":77},null,{"$f":"C41","v":"Line Total"}]
[]
[null,null,"Parameter",null,null,null,null,null,365,null,{"$f":"C43","v":"Parameter"}]
[]
[null,null,"Range Name Description",null,null,null,null,null,"Not_Named",null,{"$f":"C45","v":"Range Name Description"}]
[]
[null,null,"Row Reference",null,null,null,null,null,{"$f":"ROW(C47)","v":47},null,"Row Ref"]
[]
[null,null,"Row Summary",null,null,null,null,null,{"$f":"I41","v":77},null,{"$f":"C49","v":"Row Summary"}]
[]
[null,null,"Units",null,null,null,null,null,"A$",null,{"$f":"C51","v":"Units"}]
[]
[null,null,"WIP",null,null,null,null,null,null,null,{"$f":"C53","v":"WIP"}]
[]
[]
[null,{"$f":"MAX($B$5:$B55)+1","v":3},"Numerical Styles"]
[]
[null,null,"Description",null,null,null,null,null,"Display",null,"Style Name"]
[]
[null,null,"Comma",null,null,null,null,null,123456.789,null,{"$f":"C60","v":"Comma"}]
[]
[null,null,"Comma [0]",null,null,null,null,null,-123456.789,null,"Comma [0]"]
[]
[null,null,"Currency",null,null,null,null,null,123456.789,null,"Currency"]
[]
[null,null,"Currency [0]",null,null,null,null,null,123456.789,null,"Currency [0]"]
[]
[null,null,"Date",null,null,null,null,null,{"$f":"TODAY()","v":"2023-07-19"},null,{"$f":"C68","v":"Date"}]
[]
[null,null,"Date Heading",null,null,null,null,null,{"$f":"TODAY()","v":"2023-07-19"},null,{"$f":"C70","v":"Date Heading"}]
[]
[null,null,"Numbers 0",null,null,null,null,null,-123456.789,null,{"$f":"C72","v":"Numbers 0"}]
[]
[null,null,"Percent",null,null,null,null,null,0.5,null,{"$f":"C74","v":"Percent"}]

{"sheet":"Model Parameters","index":3,"n_rows":31,"n_cols":9,"rows_kept":31,"cut":false,"hidden":false,"merged":[[0,9,0,10],[2,0,2,4],[10,6,10,13],[11,6,11,13]]}
[{"$f":"IF(ISERROR(RIGHT(CELL(\"filename\",A1),LEN(CELL(\"filename\",A1))-FIND(\"]\",CELL(\"filename\",A1)))),\n\"\",\nRIGHT(CELL(\"filename\",A1),LEN(CELL(\"filename\",A1))-FIND(\"]\",CELL(\"filename\",A1))))","v":"Model Parameters"}]
[{"$f":"Model_Name","v":"SP Point and Figure Chart - Initial File.xlsm"}]
["Navigator"]
[null,null,null,null,"Error Checks:",null,null,null,{"$f":"Overall_Error_Check","v":0}]
[]
[null,{"$f":"MAX($B$5:$B5)+1","v":1},"General"]
[]
[null,null,"Key Inputs"]
[]
[null,null,null,null,"General"]
[null,null,null,null,"Model Name",null,{"$f":"IF(ISERROR(OR(FIND(\"[\",CELL(\"filename\",A1)),FIND(\"]\",CELL(\"filename\",A1)))),\"\",MID(CELL(\"filename\",A1),FIND(\"[\",CELL(\"filename\",A1))+1,FIND(\"]\",CELL(\"filename\",A1))-FIND(\"[\",CELL(\"filename\",A1))-1))","v":"SP Point and Figure Chart - Initial File.xlsm"}]
[null,null,null,null,"Client Name",null,"SumProduct Pty Limited"]
[]
[]
[null,{"$f":"MAX($B$5:$B14)+1","v":2},"General Range Names"]
[]
[null,null,"Technical Assumptions"]
[]
[null,null,null,null,"Days in Year",null,365]
[null,null,null,null,"Months in Month",null,1]
[null,null,null,null,"Months in Quarter",null,3]
[null,null,null,null,"Months in Half Yr",null,6]
[null,null,null,null,"Months in Year",null,12]
[null,null,null,null,"Quarters in Year",null,4]
[]
[null,null,null,null,"Rounding Accuracy",null,5]
[]
[null,null,null,null,"Very Large Number",null,9.9999999999999997E+98]
[null,null,null,null,"Very Small Number",null,1E-8]
[]
[null,null,null,null,"Thousand",null,1000]

{"sheet":"Data","index":4,"n_rows":294,"n_cols":6,"rows_kept":294,"cut":false,"hidden":false,"merged":[[2,0,2,4]]}
[{"$f":"IF(ISERROR(RIGHT(CELL(\"filename\",A1),LEN(CELL(\"filename\",A1))-FIND(\"]\",CELL(\"filename\",A1)))),\n\"\",\nRIGHT(CELL(\"filename\",A1),LEN(CELL(\"filename\",A1))-FIND(\"]\",CELL(\"filename\",A1))))","v":"Data"}]
[{"$f":"Model_Name","v":"SP Point and Figure Chart - Initial File.xlsm"}]
["Navigator"]
[null,"Error Checks:",null,null,null,{"$f":"Overall_Error_Check","v":0}]
[]
[null,{"$f":"MAX($B$5:$B5)+1","v":1},{"$f":"A1","v":"Data"}]
[]
[null,null,"Summary Data"]
[]
[null,null,null,"Min"]
[null,null,null,"Max"]
[null,null,null,"Range"]
[]
[null,null,null,"Number of Bins"]
[null,null,null,"Width"]
[]
[null,null,null,"Up Symbol","X"]
[null,null,null,"Down Symbol","O"]
[null,null,null,"Starting Symbol"]
[]
[]
[null,null,"Data Table"]
[]
[null,null,null,"The Adjusted Close Price is took from MSFT stock on Yahoo Finance"]
[null,null,null,"Date","Adj Close"]
[null,null,null,"2022-01-03",331.64]
[null,null,null,"2022-01-04",325.95575000000002]
[null,null,null,"2022-01-05",313.442993]
[null,null,null,"2022-01-06",310.96621699999997]
[null,null,null,"2022-01-07",311.12472500000001]
[null,null,null,"2022-01-10",311.35257000000001]
[null,null,null,"2022-01-11",312.05599999999998]
[null,null,null,"2022-01-12",315.31542999999999]
[null,null,null,"2022-01-13",301.97048999999998]
[null,null,null,"2022-01-14",307.320404]
[null,null,null,"2022-01-18",299.84045400000002]
[null,null,null,"2022-01-19",300.51409899999999]
[null,null,null,"2022-01-20",298.80017099999998]
[null,null,null,"2022-01-21",293.28189099999997]
[null,null,null,"2022-01-24",293.61874399999999]
[null,null,null,"2022-01-25",285.81191999999999]
[null,null,null,"2022-01-26",293.95559700000001]
[null,null,null,"2022-01-27",297.05654900000002]
[null,null,null,"2022-01-28",305.39837599999998]
[null,null,null,"2022-01-31",308.09310900000003]
[null,null,null,"2022-02-01",305.89373799999998]
[null,null,null,"2022-02-02",310.55007899999998]
[null,null,null,"2022-02-03",298.45343000000003]
[null,null,null,"2022-02-04",303.09988399999997]
[null,null,null,"2022-02-07",298.15621900000002]
[null,null,null,"2022-02-08",301.73269699999997]
[null,null,null,"2022-02-09",308.32095299999997]
[null,null,null,"2022-02-10",299.57299799999998]
[null,null,null,"2022-02-11",292.301086]
[null,null,null,"2022-02-14",292.26147500000002]
[null,null,null,"2022-02-15",297.68069500000001]
[null,null,null,"2022-02-16",297.333191]
[null,null,null,"2022-02-17",288.62667800000003]
[null,null,null,"2022-02-18",285.846924]
[null,null,null,"2022-02-22",285.63845800000001]
[null,null,null,"2022-02-23",278.24230999999997]
[null,null,null,"2022-02-24",292.45871]
[null,null,null,"2022-02-25",295.159088]
[null,null,null,"2022-02-28",296.62835699999999]
[null,null,null,"2022-03-01",292.81616200000002]
[null,null,null,"2022-03-02",298.01825000000002]
[null,null,null,"2022-03-03",293.77914399999997]
[null,null,null,"2022-03-04",287.76293900000002]
[null,null,null,"2022-03-07",276.89218099999999]
[null,null,null,"2022-03-08",273.854309]
[null,null,null,"2022-03-09",286.41281099999998]
[null,null,null,"2022-03-10",283.523865]
[null,null,null,"2022-03-11",278.04379299999999]
[null,null,null,"2022-03-14",274.44006300000001]
[null,null,null,"2022-03-15",285.07257099999998]
[null,null,null,"2022-03-16",292.26019300000002]
[null,null,null,"2022-03-17",293.08416699999998]
[null,null,null,"2022-03-18",298.25650000000002]
[null,null,null,"2022-03-21",296.99569700000001]
[null,null,null,"2022-03-22",301.860229]
[null,null,null,"2022-03-23",297.32327299999997]
[null,null,null,"2022-03-24",301.89996300000001]
[null,null,null,"2022-03-25",301.48297100000002]
[null,null,null,"2022-03-28",308.45220899999998]
[null,null,null,"2022-03-29",313.12811299999998]
[null,null,null,"2022-03-30",311.58932499999997]
[null,null,null,"2022-03-31",306.07946800000002]
[null,null,null,"2022-04-01",307.18145800000002]
[null,null,null,"2022-04-04",312.69131499999997]
[null,null,null,"2022-04-05",308.63089000000002]
[null,null,null,"2022-04-06",297.333191]
[null,null,null,"2022-04-07",299.18966699999999]
[null,null,null,"2022-04-08",294.82150300000001]
[null,null,null,"2022-04-11",283.19628899999998]
[null,null,null,"2022-04-12",280.019409]
[null,null,null,"2022-04-13",285.539154]
[null,null,null,"2022-04-14",277.805542]
[null,null,null,"2022-04-18",278.49054000000001]
[null,null,null,"2022-04-19",283.23596199999997]
[null,null,null,"2022-04-20",284.28826900000001]
[null,null,null,"2022-04-21",278.778412]
[null,null,null,"2022-04-22",272.04748499999999]
[null,null,null,"2022-04-25",278.68908699999997]
[null,null,null,"2022-04-26",268.26507600000002]
[null,null,null,"2022-04-27",281.171021]
[null,null,null,"2022-04-28",287.53463699999998]
[null,null,null,"2022-04-29",275.51220699999999]
[null,null,null,"2022-05-02",282.41195699999997]
[null,null,null,"2022-05-03",279.74142499999999]
[null,null,null,"2022-05-04",287.88211100000001]
[null,null,null,"2022-05-05",275.34347500000001]
[null,null,null,"2022-05-06",272.74243200000001]
[null,null,null,"2022-05-09",262.665863]
[null,null,null,"2022-05-10",267.55026199999998]
[null,null,null,"2022-05-11",258.665009]
[null,null,null,"2022-05-12",253.50264000000001]
[null,null,null,"2022-05-13",259.23092700000001]
[null,null,null,"2022-05-16",259.60815400000001]
[null,null,null,"2022-05-17",264.889679]
[null,null,null,"2022-05-18",252.82933]
[null,null,null,"2022-05-19",251.89395099999999]
[null,null,null,"2022-05-20",251.31680299999999]
[null,null,null,"2022-05-23",259.36697400000003]
[null,null,null,"2022-05-24",258.34204099999999]
[null,null,null,"2022-05-25",261.22778299999999]
[null,null,null,"2022-05-26",264.59112499999998]
[null,null,null,"2022-05-27",271.89498900000001]
[null,null,null,"2022-05-31",270.531769]
[null,null,null,"2022-06-01",271.07904100000002]
[null,null,null,"2022-06-02",273.22839399999998]
[null,null,null,"2022-06-03",268.69085699999999]
[null,null,null,"2022-06-06",267.42709400000001]
[null,null,null,"2022-06-07",271.158661]
[null,null,null,"2022-06-08",269.07894900000002]
[null,null,null,"2022-06-09",263.48663299999998]
[null,null,null,"2022-06-10",251.74468999999999]
[null,null,null,"2022-06-13",241.06750500000001]
[null,null,null,"2022-06-14",243.28653]
[null,null,null,"2022-06-15",250.520737]
[null,null,null,"2022-06-16",243.76416]
[null,null,null,"2022-06-17",246.430969]
[null,null,null,"2022-06-21",252.49099699999999]
[null,null,null,"2022-06-22",251.88400300000001]
[null,null,null,"2022-06-23",257.58578499999999]
[null,null,null,"2022-06-24",266.382294]
[null,null,null,"2022-06-27",263.58612099999999]
[null,null,null,"2022-06-28",255.21751399999999]
[null,null,null,"2022-06-29",258.97891199999998]
[null,null,null,"2022-06-30",255.56578099999999]
[null,null,null,"2022-07-01",258.30221599999999]
[null,null,null,"2022-07-05",261.556152]
[null,null,null,"2022-07-06",264.89959700000003]
[null,null,null,"2022-07-07",267.07882699999999]
[null,null,null,"2022-07-08",266.342468]
[null,null,null,"2022-07-11",263.20797700000003]
[null,null,null,"2022-07-12",252.42132599999999]
[null,null,null,"2022-07-13",251.47601299999999]
[null,null,null,"2022-07-14",252.82933]
[null,null,null,"2022-07-15",255.45631399999999]
[null,null,null,"2022-07-18",252.99847399999999]
[null,null,null,"2022-07-19",258.25250199999999]
[null,null,null,"2022-07-20",260.97900399999997]
[null,null,null,"2022-07-21",263.53634599999998]
[null,null,null,"2022-07-22",259.07839999999999]
[null,null,null,"2022-07-25",257.55590799999999]
[null,null,null,"2022-07-26",250.660034]
[null,null,null,"2022-07-27",267.417145]
[null,null,null,"2022-07-28",275.04940800000003]
[null,null,null,"2022-07-29",279.358093]
[null,null,null,"2022-08-01",276.64154100000002]
[null,null,null,"2022-08-02",273.46722399999999]
[null,null,null,"2022-08-03",281.07955900000002]
[null,null,null,"2022-08-04",282.25375400000001]
[null,null,null,"2022-08-05",281.51739500000002]
[null,null,null,"2022-08-08",278.940155]
[null,null,null,"2022-08-09",280.91039999999998]
[null,null,null,"2022-08-10",287.73663299999998]
[null,null,null,"2022-08-11",285.607147]
[null,null,null,"2022-08-12",290.47311400000001]
[null,null,null,"2022-08-15",292.02545199999997]
[null,null,null,"2022-08-16",291.26916499999999]
[null,null,null,"2022-08-17",290.50134300000002]
[null,null,null,"2022-08-18",289.35455300000001]
[null,null,null,"2022-08-19",285.34585600000003]
[null,null,null,"2022-08-22",276.96945199999999]
[null,null,null,"2022-08-23",275.66314699999998]
[null,null,null,"2022-08-24",275.01498400000003]
[null,null,null,"2022-08-25",278.06637599999999]
[null,null,null,"2022-08-26",267.33660900000001]
[null,null,null,"2022-08-29",264.48464999999999]
[null,null,null,"2022-08-30",262.23098800000002]
[null,null,null,"2022-08-31",260.73519900000002]
[null,null,null,"2022-09-01",259.66821299999998]
[null,null,null,"2022-09-02",255.340408]
[null,null,null,"2022-09-06",252.53829999999999]
[null,null,null,"2022-09-07",257.36471599999999]
[null,null,null,"2022-09-08",257.79348800000002]
[null,null,null,"2022-09-09",263.71679699999999]
[null,null,null,"2022-09-12",265.90063500000002]
[null,null,null,"2022-09-13",251.28185999999999]
[null,null,null,"2022-09-14",251.5112]
[null,null,null,"2022-09-15",244.69042999999999]
[null,null,null,"2022-09-16",244.05223100000001]
[null,null,null,"2022-09-19",243.83284]
[null,null,null,"2022-09-20",241.76866100000001]
[null,null,null,"2022-09-21",238.27848800000001]
[null,null,null,"2022-09-22",240.30278000000001]
[null,null,null,"2022-09-23",237.25138899999999]
[null,null,null,"2022-09-26",236.78270000000001]
[null,null,null,"2022-09-27",235.74563599999999]
[null,null,null,"2022-09-28",240.39254800000001]
[null,null,null,"2022-09-29",236.83256499999999]
[null,null,null,"2022-09-30",232.24548300000001]
[null,null,null,"2022-10-03",240.06346099999999]
[null,null,null,"2022-10-04",248.180588]
[null,null,null,"2022-10-05",248.49968000000001]
[null,null,null,"2022-10-06",246.096451]
[null,null,null,"2022-10-07",233.58174099999999]
[null,null,null,"2022-10-10",228.60575900000001]
[null,null,null,"2022-10-11",224.77654999999999]
[null,null,null,"2022-10-12",225.11558500000001]
[null,null,null,"2022-10-13",233.58174099999999]
[null,null,null,"2022-10-14",227.91769400000001]
[null,null,null,"2022-10-17",236.86248800000001]
[null,null,null,"2022-10-18",237.829758]
[null,null,null,"2022-10-19",235.81542999999999]
[null,null,null,"2022-10-20",235.48635899999999]
[null,null,null,"2022-10-21",241.43957499999999]
[null,null,null,"2022-10-24",246.55517599999999]
[null,null,null,"2022-10-25",249.95558199999999]
[null,null,null,"2022-10-26",230.669937]
[null,null,null,"2022-10-27",226.11277799999999]
[null,null,null,"2022-10-28",235.20713799999999]
[null,null,null,"2022-10-31",231.47766100000001]
[null,null,null,"2022-11-01",227.52879300000001]
[null,null,null,"2022-11-02",219.48147599999999]
[null,null,null,"2022-11-03",213.64790300000001]
[null,null,null,"2022-11-04",220.76783800000001]
[null,null,null,"2022-11-07",227.22962999999999]
[null,null,null,"2022-11-08",228.226822]
[null,null,null,"2022-11-09",223.879074]
[null,null,null,"2022-11-10",242.29716500000001]
[null,null,null,"2022-11-11",246.415558]
[null,null,null,"2022-11-14",240.871185]
[null,null,null,"2022-11-15",241.290009]
[null,null,null,"2022-11-16",241.729996]
[null,null,null,"2022-11-17",241.679993]
[null,null,null,"2022-11-18",241.220001]
[null,null,null,"2022-11-21",242.050003]
[null,null,null,"2022-11-22",245.029999]
[null,null,null,"2022-11-23",247.58000200000001]
[null,null,null,"2022-11-25",247.490005]
[null,null,null,"2022-11-28",241.759995]
[null,null,null,"2022-11-29",240.33000200000001]
[null,null,null,"2022-11-30",255.13999899999999]
[null,null,null,"2022-12-01",254.69000199999999]
[null,null,null,"2022-12-02",255.020004]
[null,null,null,"2022-12-05",250.199997]
[null,null,null,"2022-12-06",245.11999499999999]
[null,null,null,"2022-12-07",244.36999499999999]
[null,null,null,"2022-12-08",247.39999399999999]
[null,null,null,"2022-12-09",245.41999799999999]
[null,null,null,"2022-12-12",252.509995]
[null,null,null,"2022-12-13",256.92001299999998]
[null,null,null,"2022-12-14",257.22000100000002]
[null,null,null,"2022-12-15",249.009995]
[null,null,null,"2022-12-16",244.69000199999999]
[null,null,null,"2022-12-19",240.449997]
[null,null,null,"2022-12-20",241.800003]
[null,null,null,"2022-12-21",244.429993]
[null,null,null,"2022-12-22",238.19000199999999]
[null,null,null,"2022-12-23",238.729996]
[null,null,null,"2022-12-27",236.96000699999999]
[null,null,null,"2022-12-28",234.529999]
[null,null,null,"2022-12-29",241.009995]
[null,null,null,"2022-12-30",239.820007]
[null,null,null,"2023-01-03",239.58000200000001]
[null,null,null,"2023-01-04",229.10000600000001]
[null,null,null,"2023-01-05",222.30999800000001]
[null,null,null,"2023-01-06",224.929993]
[null,null,null,"2023-01-09",227.11999499999999]
[null,null,null,"2023-01-10",228.85000600000001]
[null,null,null,"2023-01-11",235.770004]
[null,null,null,"2023-01-12",238.509995]
[null,null,null,"2023-01-13",239.229996]
[null,null,null,"2023-01-17",240.35000600000001]
[null,null,null,"2023-01-18",235.80999800000001]
[null,null,null,"2023-01-19",231.929993]
[null,null,null,"2023-01-20",240.220001]
[null,null,null,"2023-01-23",242.58000200000001]
[null,null,null,"2023-01-24",242.03999300000001]
[null,null,null,"2023-01-25",240.61000100000001]
[null,null,null,"2023-01-26",248]
[null,null,null,"2023-01-27",248.16000399999999]

{"sheet":"PnF_CSE","index":5,"n_rows":11,"n_cols":137,"rows_kept":11,"cut":false,"hidden":false,"merged":[[2,0,2,4]]}
[{"$f":"IF(ISERROR(RIGHT(CELL(\"filename\",A1),LEN(CELL(\"filename\",A1))-FIND(\"]\",CELL(\"filename\",A1)))),\n\"\",\nRIGHT(CELL(\"filename\",A1),LEN(CELL(\"filename\",A1))-FIND(\"]\",CELL(\"filename\",A1))))","v":"PnF_CSE"}]
[{"$f":"Model_Name","v":"SP Point and Figure Chart - Initial File.xlsm"}]
["Navigator"]
[null,"Error Checks:",null,null,null,{"$f":"Overall_Error_Check","v":0}]
[]
[null,{"$f":"MAX($B$5:$B5)+1","v":1},{"$f":"A1","v":"PnF_CSE"}]
[]
[]
[]
[null,null,null,null,"Lower Bin","Upper Bin"]
[null,null,null,null,null,null,{"$f":"IFERROR(\nIF((_xlfn.ANCHORARRAY($F11)>=MIN(_xlfn.VSTACK(_xlfn._xlws.FILTER(Data[Adj Close],#REF!=G$9),IFERROR(_xlfn._xlws.FILTER(Data[Adj Close],#REF!=G$9),\"\"))))\n     *(_xlfn.ANCHORARRAY($E11)<=MAX(_xlfn.VSTACK(_xlfn._xlws.FILTER(Data[Adj Close],#REF!=G$9),IFERROR(_xlfn._xlws.FILTER(Data[Adj Close],#REF!=G$9),\"\")))),\n\n_xlfn.IFS(Starting_Symbol=Up_Symbol,IF(MOD(G9,2)=1,Up_Symbol,Down_Symbol),\n        Starting_Symbol=Down_Symbol,IF(MOD(G9,2)=1,Down_Symbol,Up_Symbol)),\"\"),\n\n\"\")","v":""},{"$f":"IFERROR(\nIF((_xlfn.ANCHORARRAY($F11)>=MIN(_xlfn.VSTACK(_xlfn._xlws.FILTER(Data[Adj Close],#REF!=H$9),IFERROR(_xlfn._xlws.FILTER(Data[Adj Close],#REF!=H$9),\"\"))))\n     *(_xlfn.ANCHORARRAY($E11)<=MAX(_xlfn.VSTACK(_xlfn._xlws.FILTER(Data[Adj Close],#REF!=H$9),IFERROR(_xlfn._xlws.FILTER(Data[Adj Close],#REF!=H$9),\"\")))),\n\n_xlfn.IFS(Starting_Symbol=Up_Symbol,IF(MOD(H9,2)=1,Up_Symbol,Down_Symbol),\n        Starting_Symbol=Down_Symbol,IF(MOD(H9,2)=1,Down_Symbol,Up_Symbol)),\"\"),\n\n\"\")","v":""},{"$f":"IFERROR(\nIF((_xlfn.ANCHORARRAY($F11)>=MIN(_xlfn.VSTACK(_xlfn._xlws.FILTER(Data[Adj Close],#REF!=I$9),IFERROR(_xlfn._xlws.FILTER(Data[Adj Close],#REF!=I$9),\"\"))))\n     *(_xlfn.ANCHORARRAY($E11)<=MAX(_xlfn.VSTACK(_xlfn._xlws.FILTER(Data[Adj Close],#REF!=I$9),IFERROR(_xlfn._xlws.FILTER(Data[Adj Close],#REF!=I$9),\"\")))),\n\n_xlfn.IFS(Starting_Symbol=Up_Symbol,IF(MOD(I9,2)=1,Up_Symbol,Down_Symbol),\n        Starting_Symbol=Down_Symbol,IF(MOD(I9,2)=1,Down_Symbol,Up_Symbol)),\"\"),\n\n\"\")","v":""},{"$f":"IFERROR(\nIF((_xlfn.ANCHORARRAY($F11)>=MIN(_xlfn.VSTACK(_xlfn._xlws.FILTER(Data[Adj Close],#REF!=J$9),IFERROR(_xlfn._xlws.FILTER(Data[Adj Close],#REF!=J$9),\"\"))))\n     *(_xlfn.ANCHORARRAY($E11)<=MAX(_xlfn.VSTACK(_xlfn._xlws.FILTER(Data[Adj Close],#REF!=J$9),IFERROR(_xlfn._xlws.FILTER(Data[Adj Close],#REF!=J$9),\"\")))),\n\n_xlfn.IFS(Starting_Symbol=Up_Symbol,IF(MOD(J9,2)=1,Up_Symbol,Down_Symbol),\n        Starting_Symbol=Down_Symbol,IF(MOD(J9,2)=1,Down_Symbol,Up_Symbol)),\"\"),\n\n\"\")","v":""},{"$f":"IFERROR(\nIF((_xlfn.ANCHORARRAY($F11)>=MIN(_xlfn.VSTACK(_xlfn._xlws.FILTER(Data[Adj Close],#REF!=K$9),IFERROR(_xlfn._xlws.FILTER(Data[Adj Close],#REF!=K$9),\"\"))))\n     *(_xlfn.ANCHORARRAY($E11)<=MAX(_xlfn.VSTACK(_xlfn._xlws.FILTER(Data[Adj Close],#REF!=K$9),IFERROR(_xlfn._xlws.FILTER(Data[Adj Close],#REF!=K$9),\"\")))),\n\n_xlfn.IFS(Starting_Symbol=Up_Symbol,IF(MOD(K9,2)=1,Up_Symbol,Down_Symbol),\n        Starting_Symbol=Down_Symbol,IF(MOD(K9,2)=1,Down_Symbol,Up_Symbol)),\"\"),\n\n\"\")","v":""},{"$f":"IFERROR(\nIF((_xlfn.ANCHORARRAY($F11)>=MIN(_xlfn.VSTACK(_xlfn._xlws.FILTER(Data[Adj Close],#REF!=L$9),IFERROR(_xlfn._xlws.FILTER(Data[Adj Close],#REF!=L$9),\"\"))))\n     *(_xlfn.ANCHORARRAY($E11)<=MAX(_xlfn.VSTACK(_xlfn._xlws.FILTER(Data[Adj Close],#REF!=L$9),IFERROR(_xlfn._xlws.FILTER(Data[Adj Close],#REF!=L$9),\"\")))),\n\n_xlfn.IFS(Starting_Symbol=Up_Symbol,IF(MOD(L9,2)=1,Up_Symbol,Down_Symbol),\n        Starting_Symbol=Down_Symbol,IF(MOD(L9,2)=1,Down_Symbol,Up_Symbol)),\"\"),\n\n\"\")","v":""},{"$f":"IFERROR(\nIF((_xlfn.ANCHORARRAY($F11)>=MIN(_xlfn.VSTACK(_xlfn._xlws.FILTER(Data[Adj Close],#REF!=M$9),IFERROR(_xlfn._xlws.FILTER(Data[Adj Close],#REF!=M$9),\"\"))))\n     *(_xlfn.ANCHORARRAY($E11)<=MAX(_xlfn.VSTACK(_xlfn._xlws.FILTER(Data[Adj Close],#REF!=M$9),IFERROR(_xlfn._xlws.FILTER(Data[Adj Close],#REF!=M$9),\"\")))),\n\n_xlfn.IFS(Starting_Symbol=Up_Symbol,IF(MOD(M9,2)=1,Up_Symbol,Down_Symbol),\n        Starting_Symbol=Down_Symbol,IF(MOD(M9,2)=1,Down_Symbol,Up_Symbol)),\"\"),\n\n\"\")","v":""},{"$f":"IFERROR(\nIF((_xlfn.ANCHORARRAY($F11)>=MIN(_xlfn.VSTACK(_xlfn._xlws.FILTER(Data[Adj Close],#REF!=N$9),IFERROR(_xlfn._xlws.FILTER(Data[Adj Close],#REF!=N$9),\"\"))))\n     *(_xlfn.ANCHORARRAY($E11)<=MAX(_xlfn.VSTACK(_xlfn._xlws.FILTER(Data[Adj Close],#REF!=N$9),IFERROR(_xlfn._xlws.FILTER(Data[Adj Close],#REF!=N$9),\"\")))),\n\n_xlfn.IFS(Starting_Symbol=Up_Symbol,IF(MOD(N9,2)=1,Up_Symbol,Down_Symbol),\n        Starting_Symbol=Down_Symbol,IF(MOD(N9,2)=1,Down_Symbol,Up_Symbol)),\"\"),\n\n\"\")","v":""},{"$f":"IFERROR(\nIF((_xlfn.ANCHORARRAY($F11)>=MIN(_xlfn.VSTACK(_xlfn._xlws.FILTER(Data[Adj Close],#REF!=O$9),IFERROR(_xlfn._xlws.FILTER(Data[Adj Close],#REF!=O$9),\"\"))))\n     *(_xlfn.ANCHORARRAY($E11)<=MAX(_xlfn.VSTACK(_xlfn._xlws.FILTER(Data[Adj Close],#REF!=O$9),IFERROR(_xlfn._xlws.FILTER(Data[Adj Close],#REF!=O$9),\"\")))),\n\n_xlfn.IFS(Starting_Symbol=Up_Symbol,IF(MOD(O9,2)=1,Up_Symbol,Down_Symbol),\n        Starting_Symbol=Down_Symbol,IF(MOD(O9,2)=1,Down_Symbol,Up_Symbol)),\"\"),\n\n\"\")","v":""},{"$f":"IFERROR(\nIF((_xlfn.ANCHORARRAY($F11)>=MIN(_xlfn.VSTACK(_xlfn._xlws.FILTER(Data[Adj Close],#REF!=P$9),IFERROR(_xlfn._xlws.FILTER(Data[Adj Close],#REF!=P$9),\"\"))))\n     *(_xlfn.ANCHORARRAY($E11)<=MAX(_xlfn.VSTACK(_xlfn._xlws.FILTER(Data[Adj Close],#REF!=P$9),IFERROR(_xlfn._xlws.FILTER(Data[Adj Close],#REF!=P$9),\"\")))),\n\n_xlfn.IFS(Starting_Symbol=Up_Symbol,IF(MOD(P9,2)=1,Up_Symbol,Down_Symbol),\n        Starting_Symbol=Down_Symbol,IF(MOD(P9,2)=1,Down_Symbol,Up_Symbol)),\"\"),\n\n\"\")","v":""},{"$f":"IFERROR(\nIF((_xlfn.ANCHORARRAY($F11)>=MIN(_xlfn.VSTACK(_xlfn._xlws.FILTER(Data[Adj Close],#REF!=Q$9),IFERROR(_xlfn._xlws.FILTER(Data[Adj Close],#REF!=Q$9),\"\"))))\n     *(_xlfn.ANCHORARRAY($E11)<=MAX(_xlfn.VSTACK(_xlfn._xlws.FILTER(Data[Adj Close],#REF!=Q$9),IFERROR(_xlfn._xlws.FILTER(Data[Adj Close],#REF!=Q$9),\"\")))),\n\n_xlfn.IFS(Starting_Symbol=Up_Symbol,IF(MOD(Q9,2)=1,Up_Symbol,Down_Symbol),\n        Starting_Symbol=Down_Symbol,IF(MOD(Q9,2)=1,Down_Symbol,Up_Symbol)),\"\"),\n\n\"\")","v":""},{"$f":"IFERROR(\nIF((_xlfn.ANCHORARRAY($F11)>=MIN(_xlfn.VSTACK(_xlfn._xlws.FILTER(Data[Adj Close],#REF!=R$9),IFERROR(_xlfn._xlws.FILTER(Data[Adj Close],#REF!=R$9),\"\"))))\n     *(_xlfn.ANCHORARRAY($E11)<=MAX(_xlfn.VSTACK(_xlfn._xlws.FILTER(Data[Adj Close],#REF!=R$9),IFERROR(_xlfn._xlws.FILTER(Data[Adj Close],#REF!=R$9),\"\")))),\n\n_xlfn.IFS(Starting_Symbol=Up_Symbol,IF(MOD(R9,2)=1,Up_Symbol,Down_Symbol),\n        Starting_Symbol=Down_Symbol,IF(MOD(R9,2)=1,Down_Symbol,Up_Symbol)),\"\"),\n\n\"\")","v":""},{"$f":"IFERROR(\nIF((_xlfn.ANCHORARRAY($F11)>=MIN(_xlfn.VSTACK(_xlfn._xlws.FILTER(Data[Adj Close],#REF!=S$9),IFERROR(_xlfn._xlws.FILTER(Data[Adj Close],#REF!=S$9),\"\"))))\n     *(_xlfn.ANCHORARRAY($E11)<=MAX(_xlfn.VSTACK(_xlfn._xlws.FILTER(Data[Adj Close],#REF!=S$9),IFERROR(_xlfn._xlws.FILTER(Data[Adj Close],#REF!=S$9),\"\")))),\n\n_xlfn.IFS(Starting_Symbol=Up_Symbol,IF(MOD(S9,2)=1,Up_Symbol,Down_Symbol),\n        Starting_Symbol=Down_Symbol,IF(MOD(S9,2)=1,Down_Symbol,Up_Symbol)),\"\"),\n\n\"\")","v":""},{"$f":"IFERROR(\nIF((_xlfn.ANCHORARRAY($F11)>=MIN(_xlfn.VSTACK(_xlfn._xlws.FILTER(Data[Adj Close],#REF!=T$9),IFERROR(_xlfn._xlws.FILTER(Data[Adj Close],#REF!=T$9),\"\"))))\n     *(_xlfn.ANCHORARRAY($E11)<=MAX(_xlfn.VSTACK(_xlfn._xlws.FILTER(Data[Adj Close],#REF!=T$9),IFERROR(_xlfn._xlws.FILTER(Data[Adj Close],#REF!=T$9),\"\")))),\n\n_xlfn.IFS(Starting_Symbol=Up_Symbol,IF(MOD(T9,2)=1,Up_Symbol,Down_Symbol),\n        Starting_Symbol=Down_Symbol,IF(MOD(T9,2)=1,Down_Symbol,Up_Symbol)),\"\"),\n\n\"\")","v":""},{"$f":"IFERROR(\nIF((_xlfn.ANCHORARRAY($F11)>=MIN(_xlfn.VSTACK(_xlfn._xlws.FILTER(Data[Adj Close],#REF!=U$9),IFERROR(_xlfn._xlws.FILTER(Data[Adj Close],#REF!=U$9),\"\"))))\n     *(_xlfn.ANCHORARRAY($E11)<=MAX(_xlfn.VSTACK(_xlfn._xlws.FILTER(Data[Adj Close],#REF!=U$9),IFERROR(_xlfn._xlws.FILTER(Data[Adj Close],#REF!=U$9),\"\")))),\n\n_xlfn.IFS(Starting_Symbol=Up_Symbol,IF(MOD(U9,2)=1,Up_Symbol,Down_Symbol),\n        Starting_Symbol=Down_Symbol,IF(MOD(U9,2)=1,Down_Symbol,Up_Symbol)),\"\"),\n\n\"\")","v":""},{"$f":"IFERROR(\nIF((_xlfn.ANCHORARRAY($F11)>=MIN(_xlfn.VSTACK(_xlfn._xlws.FILTER(Data[Adj Close],#REF!=V$9),IFERROR(_xlfn._xlws.FILTER(Data[Adj Close],#REF!=V$9),\"\"))))\n     *(_xlfn.ANCHORARRAY($E11)<=MAX(_xlfn.VSTACK(_xlfn._xlws.FILTER(Data[Adj Close],#REF!=V$9),IFERROR(_xlfn._xlws.FILTER(Data[Adj Close],#REF!=V$9),\"\")))),\n\n_xlfn.IFS(Starting_Symbol=Up_Symbol,IF(MOD(V9,2)=1,Up_Symbol,Down_Symbol),\n        Starting_Symbol=Down_Symbol,IF(MOD(V9,2)=1,Down_Symbol,Up_Symbol)),\"\"),\n\n\"\")","v":""},{"$f":"IFERROR(\nIF((_xlfn.ANCHORARRAY($F11)>=MIN(_xlfn.VSTACK(_xlfn._xlws.FILTER(Data[Adj Close],#REF!=W$9),IFERROR(_xlfn._xlws.FILTER(Data[Adj Close],#REF!=W$9),\"\"))))\n     *(_xlfn.ANCHORARRAY($E11)<=MAX(_xlfn.VSTACK(_xlfn._xlws.FILTER(Data[Adj Close],#REF!=W$9),IFERROR(_xlfn._xlws.FILTER(Data[Adj Close],#REF!=W$9),\"\")))),\n\n_xlfn.IFS(Starting_Symbol=Up_Symbol,IF(MOD(W9,2)=1,Up_Symbol,Down_Symbol),\n        Starting_Symbol=Down_Symbol,IF(MOD(W9,2)=1,Down_Symbol,Up_Symbol)),\"\"),\n\n\"\")","v":""},{"$f":"IFERROR(\nIF((_xlfn.ANCHORARRAY($F11)>=MIN(_xlfn.VSTACK(_xlfn._xlws.FILTER(Data[Adj Close],#REF!=X$9),IFERROR(_xlfn._xlws.FILTER(Data[Adj Close],#REF!=X$9),\"\"))))\n     *(_xlfn.ANCHORARRAY($E11)<=MAX(_xlfn.VSTACK(_xlfn._xlws.FILTER(Data[Adj Close],#REF!=X$9),IFERROR(_xlfn._xlws.FILTER(Data[Adj Close],#REF!=X$9),\"\")))),\n\n_xlfn.IFS(Starting_Symbol=Up_Symbol,IF(MOD(X9,2)=1,Up_Symbol,Down_Symbol),\n        Starting_Symbol=Down_Symbol,IF(MOD(X9,2)=1,Down_Symbol,Up_Symbol)),\"\"),\n\n\"\")","v":""},{"$f":"IFERROR(\nIF((_xlfn.ANCHORARRAY($F11)>=MIN(_xlfn.VSTACK(_xlfn._xlws.FILTER(Data[Adj Close],#REF!=Y$9),IFERROR(_xlfn._xlws.FILTER(Data[Adj Close],#REF!=Y$9),\"\"))))\n     *(_xlfn.ANCHORARRAY($E11)<=MAX(_xlfn.VSTACK(_xlfn._xlws.FILTER(Data[Adj Close],#REF!=Y$9),IFERROR(_xlfn._xlws.FILTER(Data[Adj Close],#REF!=Y$9),\"\")))),\n\n_xlfn.IFS(Starting_Symbol=Up_Symbol,IF(MOD(Y9,2)=1,Up_Symbol,Down_Symbol),\n        Starting_Symbol=Down_Symbol,IF(MOD(Y9,2)=1,Down_Symbol,Up_Symbol)),\"\"),\n\n\"\")","v":""},{"$f":"IFERROR(\nIF((_xlfn.ANCHORARRAY($F11)>=MIN(_xlfn.VSTACK(_xlfn._xlws.FILTER(Data[Adj Close],#REF!=Z$9),IFERROR(_xlfn._xlws.FILTER(Data[Adj Close],#REF!=Z$9),\"\"))))\n     *(_xlfn.ANCHORARRAY($E11)<=MAX(_xlfn.VSTACK(_xlfn._xlws.FILTER(Data[Adj Close],#REF!=Z$9),IFERROR(_xlfn._xlws.FILTER(Data[Adj Close],#REF!=Z$9),\"\")))),\n\n_xlfn.IFS(Starting_Symbol=Up_Symbol,IF(MOD(Z9,2)=1,Up_Symbol,Down_Symbol),\n        Starting_Symbol=Down_Symbol,IF(MOD(Z9,2)=1,Down_Symbol,Up_Symbol)),\"\"),\n\n\"\")","v":""},{"$f":"IFERROR(\nIF((_xlfn.ANCHORARRAY($F11)>=MIN(_xlfn.VSTACK(_xlfn._xlws.FILTER(Data[Adj Close],#REF!=AA$9),IFERROR(_xlfn._xlws.FILTER(Data[Adj Close],#REF!=AA$9),\"\"))))\n     *(_xlfn.ANCHORARRAY($E11)<=MAX(_xlfn.VSTACK(_xlfn._xlws.FILTER(Data[Adj Close],#REF!=AA$9),IFERROR(_xlfn._xlws.FILTER(Data[Adj Close],#REF!=AA$9),\"\")))),\n\n_xlfn.IFS(Starting_Symbol=Up_Symbol,IF(MOD(AA9,2)=1,Up_Symbol,Down_Symbol),\n        Starting_Symbol=Down_Symbol,IF(MOD(AA9,2)=1,Down_Symbol,Up_Symbol)),\"\"),\n\n\"\")","v":""},{"$f":"IFERROR(\nIF((_xlfn.ANCHORARRAY($F11)>=MIN(_xlfn.VSTACK(_xlfn._xlws.FILTER(Data[Adj Close],#REF!=AB$9),IFERROR(_xlfn._xlws.FILTER(Data[Adj Close],#REF!=AB$9),\"\"))))\n     *(_xlfn.ANCHORARRAY($E11)<=MAX(_xlfn.VSTACK(_xlfn._xlws.FILTER(Data[Adj Close],#REF!=AB$9),IFERROR(_xlfn._xlws.FILTER(Data[Adj Close],#REF!=AB$9),\"\")))),\n\n_xlfn.IFS(Starting_Symbol=Up_Symbol,IF(MOD(AB9,2)=1,Up_Symbol,Down_Symbol),\n        Starting_Symbol=Down_Symbol,IF(MOD(AB9,2)=1,Down_Symbol,Up_Symbol)),\"\"),\n\n\"\")","v":""},{"$f":"IFERROR(\nIF((_xlfn.ANCHORARRAY($F11)>=MIN(_xlfn.VSTACK(_xlfn._xlws.FILTER(Data[Adj Close],#REF!=AC$9),IFERROR(_xlfn._xlws.FILTER(Data[Adj Close],#REF!=AC$9),\"\"))))\n     *(_xlfn.ANCHORARRAY($E11)<=MAX(_xlfn.VSTACK(_xlfn._xlws.FILTER(Data[Adj Close],#REF!=AC$9),IFERROR(_xlfn._xlws.FILTER(Data[Adj Close],#REF!=AC$9),\"\")))),\n\n_xlfn.IFS(Starting_Symbol=Up_Symbol,IF(MOD(AC9,2)=1,Up_Symbol,Down_Symbol),\n        Starting_Symbol=Down_Symbol,IF(MOD(AC9,2)=1,Down_Symbol,Up_Symbol)),\"\"),\n\n\"\")","v":""},{"$f":"IFERROR(\nIF((_xlfn.ANCHORARRAY($F11)>=MIN(_xlfn.VSTACK(_xlfn._xlws.FILTER(Data[Adj Close],#REF!=AD$9),IFERROR(_xlfn._xlws.FILTER(Data[Adj Close],#REF!=AD$9),\"\"))))\n     *(_xlfn.ANCHORARRAY($E11)<=MAX(_xlfn.VSTACK(_xlfn._xlws.FILTER(Data[Adj Close],#REF!=AD$9),IFERROR(_xlfn._xlws.FILTER(Data[Adj Close],#REF!=AD$9),\"\")))),\n\n_xlfn.IFS(Starting_Symbol=Up_Symbol,IF(MOD(AD9,2)=1,Up_Symbol,Down_Symbol),\n        Starting_Symbol=Down_Symbol,IF(MOD(AD9,2)=1,Down_Symbol,Up_Symbol)),\"\"),\n\n\"\")","v":""},{"$f":"IFERROR(\nIF((_xlfn.ANCHORARRAY($F11)>=MIN(_xlfn.VSTACK(_xlfn._xlws.FILTER(Data[Adj Close],#REF!=AE$9),IFERROR(_xlfn._xlws.FILTER(Data[Adj Close],#REF!=AE$9),\"\"))))\n     *(_xlfn.ANCHORARRAY($E11)<=MAX(_xlfn.VSTACK(_xlfn._xlws.FILTER(Data[Adj Close],#REF!=AE$9),IFERROR(_xlfn._xlws.FILTER(Data[Adj Close],#REF!=AE$9),\"\")))),\n\n_xlfn.IFS(Starting_Symbol=Up_Symbol,IF(MOD(AE9,2)=1,Up_Symbol,Down_Symbol),\n        Starting_Symbol=Down_Symbol,IF(MOD(AE9,2)=1,Down_Symbol,Up_Symbol)),\"\"),\n\n\"\")","v":""},{"$f":"IFERROR(\nIF((_xlfn.ANCHORARRAY($F11)>=MIN(_xlfn.VSTACK(_xlfn._xlws.FILTER(Data[Adj Close],#REF!=AF$9),IFERROR(_xlfn._xlws.FILTER(Data[Adj Close],#REF!=AF$9),\"\"))))\n     *(_xlfn.ANCHORARRAY($E11)<=MAX(_xlfn.VSTACK(_xlfn._xlws.FILTER(Data[Adj Close],#REF!=AF$9),IFERROR(_xlfn._xlws.FILTER(Data[Adj Close],#REF!=AF$9),\"\")))),\n\n_xlfn.IFS(Starting_Symbol=Up_Symbol,IF(MOD(AF9,2)=1,Up_Symbol,Down_Symbol),\n        Starting_Symbol=Down_Symbol,IF(MOD(AF9,2)=1,Down_Symbol,Up_Symbol)),\"\"),\n\n\"\")","v":""},{"$f":"IFERROR(\nIF((_xlfn.ANCHORARRAY($F11)>=MIN(_xlfn.VSTACK(_xlfn._xlws.FILTER(Data[Adj Close],#REF!=AG$9),IFERROR(_xlfn._xlws.FILTER(Data[Adj Close],#REF!=AG$9),\"\"))))\n     *(_xlfn.ANCHORARRAY($E11)<=MAX(_xlfn.VSTACK(_xlfn._xlws.FILTER(Data[Adj Close],#REF!=AG$9),IFERROR(_xlfn._xlws.FILTER(Data[Adj Close],#REF!=AG$9),\"\")))),\n\n_xlfn.IFS(Starting_Symbol=Up_Symbol,IF(MOD(AG9,2)=1,Up_Symbol,Down_Symbol),\n        Starting_Symbol=Down_Symbol,IF(MOD(AG9,2)=1,Down_Symbol,Up_Symbol)),\"\"),\n\n\"\")","v":""},{"$f":"IFERROR(\nIF((_xlfn.ANCHORARRAY($F11)>=MIN(_xlfn.VSTACK(_xlfn._xlws.FILTER(Data[Adj Close],#REF!=AH$9),IFERROR(_xlfn._xlws.FILTER(Data[Adj Close],#REF!=AH$9),\"\"))))\n     *(_xlfn.ANCHORARRAY($E11)<=MAX(_xlfn.VSTACK(_xlfn._xlws.FILTER(Data[Adj Close],#REF!=AH$9),IFERROR(_xlfn._xlws.FILTER(Data[Adj Close],#REF!=AH$9),\"\")))),\n\n_xlfn.IFS(Starting_Symbol=Up_Symbol,IF(MOD(AH9,2)=1,Up_Symbol,Down_Symbol),\n        Starting_Symbol=Down_Symbol,IF(MOD(AH9,2)=1,Down_Symbol,Up_Symbol)),\"\"),\n\n\"\")","v":""},{"$f":"IFERROR(\nIF((_xlfn.ANCHORARRAY($F11)>=MIN(_xlfn.VSTACK(_xlfn._xlws.FILTER(Data[Adj Close],#REF!=AI$9),IFERROR(_xlfn._xlws.FILTER(Data[Adj Close],#REF!=AI$9),\"\"))))\n     *(_xlfn.ANCHORARRAY($E11)<=MAX(_xlfn.VSTACK(_xlfn._xlws.FILTER(Data[Adj Close],#REF!=AI$9),IFERROR(_xlfn._xlws.FILTER(Data[Adj Close],#REF!=AI$9),\"\")))),\n\n_xlfn.IFS(Starting_Symbol=Up_Symbol,IF(MOD(AI9,2)=1,Up_Symbol,Down_Symbol),\n        Starting_Symbol=Down_Symbol,IF(MOD(AI9,2)=1,Down_Symbol,Up_Symbol)),\"\"),\n\n\"\")","v":""},{"$f":"IFERROR(\nIF((_xlfn.ANCHORARRAY($F11)>=MIN(_xlfn.VSTACK(_xlfn._xlws.FILTER(Data[Adj Close],#REF!=AJ$9),IFERROR(_xlfn._xlws.FILTER(Data[Adj Close],#REF!=AJ$9),\"\"))))\n     *(_xlfn.ANCHORARRAY($E11)<=MAX(_xlfn.VSTACK(_xlfn._xlws.FILTER(Data[Adj Close],#REF!=AJ$9),IFERROR(_xlfn._xlws.FILTER(Data[Adj Close],#REF!=AJ$9),\"\")))),\n\n_xlfn.IFS(Starting_Symbol=Up_Symbol,IF(MOD(AJ9,2)=1,Up_Symbol,Down_Symbol),\n        Starting_Symbol=Down_Symbol,IF(MOD(AJ9,2)=1,Down_Symbol,Up_Symbol)),\"\"),\n\n\"\")","v":""},{"$f":"IFERROR(\nIF((_xlfn.ANCHORARRAY($F11)>=MIN(_xlfn.VSTACK(_xlfn._xlws.FILTER(Data[Adj Close],#REF!=AK$9),IFERROR(_xlfn._xlws.FILTER(Data[Adj Close],#REF!=AK$9),\"\"))))\n     *(_xlfn.ANCHORARRAY($E11)<=MAX(_xlfn.VSTACK(_xlfn._xlws.FILTER(Data[Adj Close],#REF!=AK$9),IFERROR(_xlfn._xlws.FILTER(Data[Adj Close],#REF!=AK$9),\"\")))),\n\n_xlfn.IFS(Starting_Symbol=Up_Symbol,IF(MOD(AK9,2)=1,Up_Symbol,Down_Symbol),\n        Starting_Symbol=Down_Symbol,IF(MOD(AK9,2)=1,Down_Symbol,Up_Symbol)),\"\"),\n\n\"\")","v":""},{"$f":"IFERROR(\nIF((_xlfn.ANCHORARRAY($F11)>=MIN(_xlfn.VSTACK(_xlfn._xlws.FILTER(Data[Adj Close],#REF!=AL$9),IFERROR(_xlfn._xlws.FILTER(Data[Adj Close],#REF!=AL$9),\"\"))))\n     *(_xlfn.ANCHORARRAY($E11)<=MAX(_xlfn.VSTACK(_xlfn._xlws.FILTER(Data[Adj Close],#REF!=AL$9),IFERROR(_xlfn._xlws.FILTER(Data[Adj Close],#REF!=AL$9),\"\")))),\n\n_xlfn.IFS(Starting_Symbol=Up_Symbol,IF(MOD(AL9,2)=1,Up_Symbol,Down_Symbol),\n        Starting_Symbol=Down_Symbol,IF(MOD(AL9,2)=1,Down_Symbol,Up_Symbol)),\"\"),\n\n\"\")","v":""},{"$f":"IFERROR(\nIF((_xlfn.ANCHORARRAY($F11)>=MIN(_xlfn.VSTACK(_xlfn._xlws.FILTER(Data[Adj Close],#REF!=AM$9),IFERROR(_xlfn._xlws.FILTER(Data[Adj Close],#REF!=AM$9),\"\"))))\n     *(_xlfn.ANCHORARRAY($E11)<=MAX(_xlfn.VSTACK(_xlfn._xlws.FILTER(Data[Adj Close],#REF!=AM$9),IFERROR(_xlfn._xlws.FILTER(Data[Adj Close],#REF!=AM$9),\"\")))),\n\n_xlfn.IFS(Starting_Symbol=Up_Symbol,IF(MOD(AM9,2)=1,Up_Symbol,Down_Symbol),\n        Starting_Symbol=Down_Symbol,IF(MOD(AM9,2)=1,Down_Symbol,Up_Symbol)),\"\"),\n\n\"\")","v":""},{"$f":"IFERROR(\nIF((_xlfn.ANCHORARRAY($F11)>=MIN(_xlfn.VSTACK(_xlfn._xlws.FILTER(Data[Adj Close],#REF!=AN$9),IFERROR(_xlfn._xlws.FILTER(Data[Adj Close],#REF!=AN$9),\"\"))))\n     *(_xlfn.ANCHORARRAY($E11)<=MAX(_xlfn.VSTACK(_xlfn._xlws.FILTER(Data[Adj Close],#REF!=AN$9),IFERROR(_xlfn._xlws.FILTER(Data[Adj Close],#REF!=AN$9),\"\")))),\n\n_xlfn.IFS(Starting_Symbol=Up_Symbol,IF(MOD(AN9,2)=1,Up_Symbol,Down_Symbol),\n        Starting_Symbol=Down_Symbol,IF(MOD(AN9,2)=1,Down_Symbol,Up_Symbol)),\"\"),\n\n\"\")","v":""},{"$f":"IFERROR(\nIF((_xlfn.ANCHORARRAY($F11)>=MIN(_xlfn.VSTACK(_xlfn._xlws.FILTER(Data[Adj Close],#REF!=AO$9),IFERROR(_xlfn._xlws.FILTER(Data[Adj Close],#REF!=AO$9),\"\"))))\n     *(_xlfn.ANCHORARRAY($E11)<=MAX(_xlfn.VSTACK(_xlfn._xlws.FILTER(Data[Adj Close],#REF!=AO$9),IFERROR(_xlfn._xlws.FILTER(Data[Adj Close],#REF!=AO$9),\"\")))),\n\n_xlfn.IFS(Starting_Symbol=Up_Symbol,IF(MOD(AO9,2)=1,Up_Symbol,Down_Symbol),\n        Starting_Symbol=Down_Symbol,IF(MOD(AO9,2)=1,Down_Symbol,Up_Symbol)),\"\"),\n\n\"\")","v":""},{"$f":"IFERROR(\nIF((_xlfn.ANCHORARRAY($F11)>=MIN(_xlfn.VSTACK(_xlfn._xlws.FILTER(Data[Adj Close],#REF!=AP$9),IFERROR(_xlfn._xlws.FILTER(Data[Adj Close],#REF!=AP$9),\"\"))))\n     *(_xlfn.ANCHORARRAY($E11)<=MAX(_xlfn.VSTACK(_xlfn._xlws.FILTER(Data[Adj Close],#REF!=AP$9),IFERROR(_xlfn._xlws.FILTER(Data[Adj Close],#REF!=AP$9),\"\")))),\n\n_xlfn.IFS(Starting_Symbol=Up_Symbol,IF(MOD(AP9,2)=1,Up_Symbol,Down_Symbol),\n        Starting_Symbol=Down_Symbol,IF(MOD(AP9,2)=1,Down_Symbol,Up_Symbol)),\"\"),\n\n\"\")","v":""},{"$f":"IFERROR(\nIF((_xlfn.ANCHORARRAY($F11)>=MIN(_xlfn.VSTACK(_xlfn._xlws.FILTER(Data[Adj Close],#REF!=AQ$9),IFERROR(_xlfn._xlws.FILTER(Data[Adj Close],#REF!=AQ$9),\"\"))))\n     *(_xlfn.ANCHORARRAY($E11)<=MAX(_xlfn.VSTACK(_xlfn._xlws.FILTER(Data[Adj Close],#REF!=AQ$9),IFERROR(_xlfn._xlws.FILTER(Data[Adj Close],#REF!=AQ$9),\"\")))),\n\n_xlfn.IFS(Starting_Symbol=Up_Symbol,IF(MOD(AQ9,2)=1,Up_Symbol,Down_Symbol),\n        Starting_Symbol=Down_Symbol,IF(MOD(AQ9,2)=1,Down_Symbol,Up_Symbol)),\"\"),\n\n\"\")","v":""},{"$f":"IFERROR(\nIF((_xlfn.ANCHORARRAY($F11)>=MIN(_xlfn.VSTACK(_xlfn._xlws.FILTER(Data[Adj Close],#REF!=AR$9),IFERROR(_xlfn._xlws.FILTER(Data[Adj Close],#REF!=AR$9),\"\"))))\n     *(_xlfn.ANCHORARRAY($E11)<=MAX(_xlfn.VSTACK(_xlfn._xlws.FILTER(Data[Adj Close],#REF!=AR$9),IFERROR(_xlfn._xlws.FILTER(Data[Adj Close],#REF!=AR$9),\"\")))),\n\n_xlfn.IFS(Starting_Symbol=Up_Symbol,IF(MOD(AR9,2)=1,Up_Symbol,Down_Symbol),\n        Starting_Symbol=Down_Symbol,IF(MOD(AR9,2)=1,Down_Symbol,Up_Symbol)),\"\"),\n\n\"\")","v":""},{"$f":"IFERROR(\nIF((_xlfn.ANCHORARRAY($F11)>=MIN(_xlfn.VSTACK(_xlfn._xlws.FILTER(Data[Adj Close],#REF!=AS$9),IFERROR(_xlfn._xlws.FILTER(Data[Adj Close],#REF!=AS$9),\"\"))))\n     *(_xlfn.ANCHORARRAY($E11)<=MAX(_xlfn.VSTACK(_xlfn._xlws.FILTER(Data[Adj Close],#REF!=AS$9),IFERROR(_xlfn._xlws.FILTER(Data[Adj Close],#REF!=AS$9),\"\")))),\n\n_xlfn.IFS(Starting_Symbol=Up_Symbol,IF(MOD(AS9,2)=1,Up_Symbol,Down_Symbol),\n        Starting_Symbol=Down_Symbol,IF(MOD(AS9,2)=1,Down_Symbol,Up_Symbol)),\"\"),\n\n\"\")","v":""},{"$f":"IFERROR(\nIF((_xlfn.ANCHORARRAY($F11)>=MIN(_xlfn.VSTACK(_xlfn._xlws.FILTER(Data[Adj Close],#REF!=AT$9),IFERROR(_xlfn._xlws.FILTER(Data[Adj Close],#REF!=AT$9),\"\"))))\n     *(_xlfn.ANCHORARRAY($E11)<=MAX(_xlfn.VSTACK(_xlfn._xlws.FILTER(Data[Adj Close],#REF!=AT$9),IFERROR(_xlfn._xlws.FILTER(Data[Adj Close],#REF!=AT$9),\"\")))),\n\n_xlfn.IFS(Starting_Symbol=Up_Symbol,IF(MOD(AT9,2)=1,Up_Symbol,Down_Symbol),\n        Starting_Symbol=Down_Symbol,IF(MOD(AT9,2)=1,Down_Symbol,Up_Symbol)),\"\"),\n\n\"\")","v":""},{"$f":"IFERROR(\nIF((_xlfn.ANCHORARRAY($F11)>=MIN(_xlfn.VSTACK(_xlfn._xlws.FILTER(Data[Adj Close],#REF!=AU$9),IFERROR(_xlfn._xlws.FILTER(Data[Adj Close],#REF!=AU$9),\"\"))))\n     *(_xlfn.ANCHORARRAY($E11)<=MAX(_xlfn.VSTACK(_xlfn._xlws.FILTER(Data[Adj Close],#REF!=AU$9),IFERROR(_xlfn._xlws.FILTER(Data[Adj Close],#REF!=AU$9),\"\")))),\n\n_xlfn.IFS(Starting_Symbol=Up_Symbol,IF(MOD(AU9,2)=1,Up_Symbol,Down_Symbol),\n        Starting_Symbol=Down_Symbol,IF(MOD(AU9,2)=1,Down_Symbol,Up_Symbol)),\"\"),\n\n\"\")","v":""},{"$f":"IFERROR(\nIF((_xlfn.ANCHORARRAY($F11)>=MIN(_xlfn.VSTACK(_xlfn._xlws.FILTER(Data[Adj Close],#REF!=AV$9),IFERROR(_xlfn._xlws.FILTER(Data[Adj Close],#REF!=AV$9),\"\"))))\n     *(_xlfn.ANCHORARRAY($E11)<=MAX(_xlfn.VSTACK(_xlfn._xlws.FILTER(Data[Adj Close],#REF!=AV$9),IFERROR(_xlfn._xlws.FILTER(Data[Adj Close],#REF!=AV$9),\"\")))),\n\n_xlfn.IFS(Starting_Symbol=Up_Symbol,IF(MOD(AV9,2)=1,Up_Symbol,Down_Symbol),\n        Starting_Symbol=Down_Symbol,IF(MOD(AV9,2)=1,Down_Symbol,Up_Symbol)),\"\"),\n\n\"\")","v":""},{"$f":"IFERROR(\nIF((_xlfn.ANCHORARRAY($F11)>=MIN(_xlfn.VSTACK(_xlfn._xlws.FILTER(Data[Adj Close],#REF!=AW$9),IFERROR(_xlfn._xlws.FILTER(Data[Adj Close],#REF!=AW$9),\"\"))))\n     *(_xlfn.ANCHORARRAY($E11)<=MAX(_xlfn.VSTACK(_xlfn._xlws.FILTER(Data[Adj Close],#REF!=AW$9),IFERROR(_xlfn._xlws.FILTER(Data[Adj Close],#REF!=AW$9),\"\")))),\n\n_xlfn.IFS(Starting_Symbol=Up_Symbol,IF(MOD(AW9,2)=1,Up_Symbol,Down_Symbol),\n        Starting_Symbol=Down_Symbol,IF(MOD(AW9,2)=1,Down_Symbol,Up_Symbol)),\"\"),\n\n\"\")","v":""},{"$f":"IFERROR(\nIF((_xlfn.ANCHORARRAY($F11)>=MIN(_xlfn.VSTACK(_xlfn._xlws.FILTER(Data[Adj Close],#REF!=AX$9),IFERROR(_xlfn._xlws.FILTER(Data[Adj Close],#REF!=AX$9),\"\"))))\n     *(_xlfn.ANCHORARRAY($E11)<=MAX(_xlfn.VSTACK(_xlfn._xlws.FILTER(Data[Adj Close],#REF!=AX$9),IFERROR(_xlfn._xlws.FILTER(Data[Adj Close],#REF!=AX$9),\"\")))),\n\n_xlfn.IFS(Starting_Symbol=Up_Symbol,IF(MOD(AX9,2)=1,Up_Symbol,Down_Symbol),\n        Starting_Symbol=Down_Symbol,IF(MOD(AX9,2)=1,Down_Symbol,Up_Symbol)),\"\"),\n\n\"\")","v":""},{"$f":"IFERROR(\nIF((_xlfn.ANCHORARRAY($F11)>=MIN(_xlfn.VSTACK(_xlfn._xlws.FILTER(Data[Adj Close],#REF!=AY$9),IFERROR(_xlfn._xlws.FILTER(Data[Adj Close],#REF!=AY$9),\"\"))))\n     *(_xlfn.ANCHORARRAY($E11)<=MAX(_xlfn.VSTACK(_xlfn._xlws.FILTER(Data[Adj Close],#REF!=AY$9),IFERROR(_xlfn._xlws.FILTER(Data[Adj Close],#REF!=AY$9),\"\")))),\n\n_xlfn.IFS(Starting_Symbol=Up_Symbol,IF(MOD(AY9,2)=1,Up_Symbol,Down_Symbol),\n        Starting_Symbol=Down_Symbol,IF(MOD(AY9,2)=1,Down_Symbol,Up_Symbol)),\"\"),\n\n\"\")","v":""},{"$f":"IFERROR(\nIF((_xlfn.ANCHORARRAY($F11)>=MIN(_xlfn.VSTACK(_xlfn._xlws.FILTER(Data[Adj Close],#REF!=AZ$9),IFERROR(_xlfn._xlws.FILTER(Data[Adj Close],#REF!=AZ$9),\"\"))))\n     *(_xlfn.ANCHORARRAY($E11)<=MAX(_xlfn.VSTACK(_xlfn._xlws.FILTER(Data[Adj Close],#REF!=AZ$9),IFERROR(_xlfn._xlws.FILTER(Data[Adj Close],#REF!=AZ$9),\"\")))),\n\n_xlfn.IFS(Starting_Symbol=Up_Symbol,IF(MOD(AZ9,2)=1,Up_Symbol,Down_Symbol),\n        Starting_Symbol=Down_Symbol,IF(MOD(AZ9,2)=1,Down_Symbol,Up_Symbol)),\"\"),\n\n\"\")","v":""},{"$f":"IFERROR(\nIF((_xlfn.ANCHORARRAY($F11)>=MIN(_xlfn.VSTACK(_xlfn._xlws.FILTER(Data[Adj Close],#REF!=BA$9),IFERROR(_xlfn._xlws.FILTER(Data[Adj Close],#REF!=BA$9),\"\"))))\n     *(_xlfn.ANCHORARRAY($E11)<=MAX(_xlfn.VSTACK(_xlfn._xlws.FILTER(Data[Adj Close],#REF!=BA$9),IFERROR(_xlfn._xlws.FILTER(Data[Adj Close],#REF!=BA$9),\"\")))),\n\n_xlfn.IFS(Starting_Symbol=Up_Symbol,IF(MOD(BA9,2)=1,Up_Symbol,Down_Symbol),\n        Starting_Symbol=Down_Symbol,IF(MOD(BA9,2)=1,Down_Symbol,Up_Symbol)),\"\"),\n\n\"\")","v":""},{"$f":"IFERROR(\nIF((_xlfn.ANCHORARRAY($F11)>=MIN(_xlfn.VSTACK(_xlfn._xlws.FILTER(Data[Adj Close],#REF!=BB$9),IFERROR(_xlfn._xlws.FILTER(Data[Adj Close],#REF!=BB$9),\"\"))))\n     *(_xlfn.ANCHORARRAY($E11)<=MAX(_xlfn.VSTACK(_xlfn._xlws.FILTER(Data[Adj Close],#REF!=BB$9),IFERROR(_xlfn._xlws.FILTER(Data[Adj Close],#REF!=BB$9),\"\")))),\n\n_xlfn.IFS(Starting_Symbol=Up_Symbol,IF(MOD(BB9,2)=1,Up_Symbol,Down_Symbol),\n        Starting_Symbol=Down_Symbol,IF(MOD(BB9,2)=1,Down_Symbol,Up_Symbol)),\"\"),\n\n\"\")","v":""},{"$f":"IFERROR(\nIF((_xlfn.ANCHORARRAY($F11)>=MIN(_xlfn.VSTACK(_xlfn._xlws.FILTER(Data[Adj Close],#REF!=BC$9),IFERROR(_xlfn._xlws.FILTER(Data[Adj Close],#REF!=BC$9),\"\"))))\n     *(_xlfn.ANCHORARRAY($E11)<=MAX(_xlfn.VSTACK(_xlfn._xlws.FILTER(Data[Adj Close],#REF!=BC$9),IFERROR(_xlfn._xlws.FILTER(Data[Adj Close],#REF!=BC$9),\"\")))),\n\n_xlfn.IFS(Starting_Symbol=Up_Symbol,IF(MOD(BC9,2)=1,Up_Symbol,Down_Symbol),\n        Starting_Symbol=Down_Symbol,IF(MOD(BC9,2)=1,Down_Symbol,Up_Symbol)),\"\"),\n\n\"\")","v":""},{"$f":"IFERROR(\nIF((_xlfn.ANCHORARRAY($F11)>=MIN(_xlfn.VSTACK(_xlfn._xlws.FILTER(Data[Adj Close],#REF!=BD$9),IFERROR(_xlfn._xlws.FILTER(Data[Adj Close],#REF!=BD$9),\"\"))))\n     *(_xlfn.ANCHORARRAY($E11)<=MAX(_xlfn.VSTACK(_xlfn._xlws.FILTER(Data[Adj Close],#REF!=BD$9),IFERROR(_xlfn._xlws.FILTER(Data[Adj Close],#REF!=BD$9),\"\")))),\n\n_xlfn.IFS(Starting_Symbol=Up_Symbol,IF(MOD(BD9,2)=1,Up_Symbol,Down_Symbol),\n        Starting_Symbol=Down_Symbol,IF(MOD(BD9,2)=1,Down_Symbol,Up_Symbol)),\"\"),\n\n\"\")","v":""},{"$f":"IFERROR(\nIF((_xlfn.ANCHORARRAY($F11)>=MIN(_xlfn.VSTACK(_xlfn._xlws.FILTER(Data[Adj Close],#REF!=BE$9),IFERROR(_xlfn._xlws.FILTER(Data[Adj Close],#REF!=BE$9),\"\"))))\n     *(_xlfn.ANCHORARRAY($E11)<=MAX(_xlfn.VSTACK(_xlfn._xlws.FILTER(Data[Adj Close],#REF!=BE$9),IFERROR(_xlfn._xlws.FILTER(Data[Adj Close],#REF!=BE$9),\"\")))),\n\n_xlfn.IFS(Starting_Symbol=Up_Symbol,IF(MOD(BE9,2)=1,Up_Symbol,Down_Symbol),\n        Starting_Symbol=Down_Symbol,IF(MOD(BE9,2)=1,Down_Symbol,Up_Symbol)),\"\"),\n\n\"\")","v":""},{"$f":"IFERROR(\nIF((_xlfn.ANCHORARRAY($F11)>=MIN(_xlfn.VSTACK(_xlfn._xlws.FILTER(Data[Adj Close],#REF!=BF$9),IFERROR(_xlfn._xlws.FILTER(Data[Adj Close],#REF!=BF$9),\"\"))))\n     *(_xlfn.ANCHORARRAY($E11)<=MAX(_xlfn.VSTACK(_xlfn._xlws.FILTER(Data[Adj Close],#REF!=BF$9),IFERROR(_xlfn._xlws.FILTER(Data[Adj Close],#REF!=BF$9),\"\")))),\n\n_xlfn.IFS(Starting_Symbol=Up_Symbol,IF(MOD(BF9,2)=1,Up_Symbol,Down_Symbol),\n        Starting_Symbol=Down_Symbol,IF(MOD(BF9,2)=1,Down_Symbol,Up_Symbol)),\"\"),\n\n\"\")","v":""},{"$f":"IFERROR(\nIF((_xlfn.ANCHORARRAY($F11)>=MIN(_xlfn.VSTACK(_xlfn._xlws.FILTER(Data[Adj Close],#REF!=BG$9),IFERROR(_xlfn._xlws.FILTER(Data[Adj Close],#REF!=BG$9),\"\"))))\n     *(_xlfn.ANCHORARRAY($E11)<=MAX(_xlfn.VSTACK(_xlfn._xlws.FILTER(Data[Adj Close],#REF!=BG$9),IFERROR(_xlfn._xlws.FILTER(Data[Adj Close],#REF!=BG$9),\"\")))),\n\n_xlfn.IFS(Starting_Symbol=Up_Symbol,IF(MOD(BG9,2)=1,Up_Symbol,Down_Symbol),\n        Starting_Symbol=Down_Symbol,IF(MOD(BG9,2)=1,Down_Symbol,Up_Symbol)),\"\"),\n\n\"\")","v":""},{"$f":"IFERROR(\nIF((_xlfn.ANCHORARRAY($F11)>=MIN(_xlfn.VSTACK(_xlfn._xlws.FILTER(Data[Adj Close],#REF!=BH$9),IFERROR(_xlfn._xlws.FILTER(Data[Adj Close],#REF!=BH$9),\"\"))))\n     *(_xlfn.ANCHORARRAY($E11)<=MAX(_xlfn.VSTACK(_xlfn._xlws.FILTER(Data[Adj Close],#REF!=BH$9),IFERROR(_xlfn._xlws.FILTER(Data[Adj Close],#REF!=BH$9),\"\")))),\n\n_xlfn.IFS(Starting_Symbol=Up_Symbol,IF(MOD(BH9,2)=1,Up_Symbol,Down_Symbol),\n        Starting_Symbol=Down_Symbol,IF(MOD(BH9,2)=1,Down_Symbol,Up_Symbol)),\"\"),\n\n\"\")","v":""},{"$f":"IFERROR(\nIF((_xlfn.ANCHORARRAY($F11)>=MIN(_xlfn.VSTACK(_xlfn._xlws.FILTER(Data[Adj Close],#REF!=BI$9),IFERROR(_xlfn._xlws.FILTER(Data[Adj Close],#REF!=BI$9),\"\"))))\n     *(_xlfn.ANCHORARRAY($E11)<=MAX(_xlfn.VSTACK(_xlfn._xlws.FILTER(Data[Adj Close],#REF!=BI$9),IFERROR(_xlfn._xlws.FILTER(Data[Adj Close],#REF!=BI$9),\"\")))),\n\n_xlfn.IFS(Starting_Symbol=Up_Symbol,IF(MOD(BI9,2)=1,Up_Symbol,Down_Symbol),\n        Starting_Symbol=Down_Symbol,IF(MOD(BI9,2)=1,Down_Symbol,Up_Symbol)),\"\"),\n\n\"\")","v":""},{"$f":"IFERROR(\nIF((_xlfn.ANCHORARRAY($F11)>=MIN(_xlfn.VSTACK(_xlfn._xlws.FILTER(Data[Adj Close],#REF!=BJ$9),IFERROR(_xlfn._xlws.FILTER(Data[Adj Close],#REF!=BJ$9),\"\"))))\n     *(_xlfn.ANCHORARRAY($E11)<=MAX(_xlfn.VSTACK(_xlfn._xlws.FILTER(Data[Adj Close],#REF!=BJ$9),IFERROR(_xlfn._xlws.FILTER(Data[Adj Close],#REF!=BJ$9),\"\")))),\n\n_xlfn.IFS(Starting_Symbol=Up_Symbol,IF(MOD(BJ9,2)=1,Up_Symbol,Down_Symbol),\n        Starting_Symbol=Down_Symbol,IF(MOD(BJ9,2)=1,Down_Symbol,Up_Symbol)),\"\"),\n\n\"\")","v":""},{"$f":"IFERROR(\nIF((_xlfn.ANCHORARRAY($F11)>=MIN(_xlfn.VSTACK(_xlfn._xlws.FILTER(Data[Adj Close],#REF!=BK$9),IFERROR(_xlfn._xlws.FILTER(Data[Adj Close],#REF!=BK$9),\"\"))))\n     *(_xlfn.ANCHORARRAY($E11)<=MAX(_xlfn.VSTACK(_xlfn._xlws.FILTER(Data[Adj Close],#REF!=BK$9),IFERROR(_xlfn._xlws.FILTER(Data[Adj Close],#REF!=BK$9),\"\")))),\n\n_xlfn.IFS(Starting_Symbol=Up_Symbol,IF(MOD(BK9,2)=1,Up_Symbol,Down_Symbol),\n        Starting_Symbol=Down_Symbol,IF(MOD(BK9,2)=1,Down_Symbol,Up_Symbol)),\"\"),\n\n\"\")","v":""},{"$f":"IFERROR(\nIF((_xlfn.ANCHORARRAY($F11)>=MIN(_xlfn.VSTACK(_xlfn._xlws.FILTER(Data[Adj Close],#REF!=BL$9),IFERROR(_xlfn._xlws.FILTER(Data[Adj Close],#REF!=BL$9),\"\"))))\n     *(_xlfn.ANCHORARRAY($E11)<=MAX(_xlfn.VSTACK(_xlfn._xlws.FILTER(Data[Adj Close],#REF!=BL$9),IFERROR(_xlfn._xlws.FILTER(Data[Adj Close],#REF!=BL$9),\"\")))),\n\n_xlfn.IFS(Starting_Symbol=Up_Symbol,IF(MOD(BL9,2)=1,Up_Symbol,Down_Symbol),\n        Starting_Symbol=Down_Symbol,IF(MOD(BL9,2)=1,Down_Symbol,Up_Symbol)),\"\"),\n\n\"\")","v":""},{"$f":"IFERROR(\nIF((_xlfn.ANCHORARRAY($F11)>=MIN(_xlfn.VSTACK(_xlfn._xlws.FILTER(Data[Adj Close],#REF!=BM$9),IFERROR(_xlfn._xlws.FILTER(Data[Adj Close],#REF!=BM$9),\"\"))))\n     *(_xlfn.ANCHORARRAY($E11)<=MAX(_xlfn.VSTACK(_xlfn._xlws.FILTER(Data[Adj Close],#REF!=BM$9),IFERROR(_xlfn._xlws.FILTER(Data[Adj Close],#REF!=BM$9),\"\")))),\n\n_xlfn.IFS(Starting_Symbol=Up_Symbol,IF(MOD(BM9,2)=1,Up_Symbol,Down_Symbol),\n        Starting_Symbol=Down_Symbol,IF(MOD(BM9,2)=1,Down_Symbol,Up_Symbol)),\"\"),\n\n\"\")","v":""},{"$f":"IFERROR(\nIF((_xlfn.ANCHORARRAY($F11)>=MIN(_xlfn.VSTACK(_xlfn._xlws.FILTER(Data[Adj Close],#REF!=BN$9),IFERROR(_xlfn._xlws.FILTER(Data[Adj Close],#REF!=BN$9),\"\"))))\n     *(_xlfn.ANCHORARRAY($E11)<=MAX(_xlfn.VSTACK(_xlfn._xlws.FILTER(Data[Adj Close],#REF!=BN$9),IFERROR(_xlfn._xlws.FILTER(Data[Adj Close],#REF!=BN$9),\"\")))),\n\n_xlfn.IFS(Starting_Symbol=Up_Symbol,IF(MOD(BN9,2)=1,Up_Symbol,Down_Symbol),\n        Starting_Symbol=Down_Symbol,IF(MOD(BN9,2)=1,Down_Symbol,Up_Symbol)),\"\"),\n\n\"\")","v":""},{"$f":"IFERROR(\nIF((_xlfn.ANCHORARRAY($F11)>=MIN(_xlfn.VSTACK(_xlfn._xlws.FILTER(Data[Adj Close],#REF!=BO$9),IFERROR(_xlfn._xlws.FILTER(Data[Adj Close],#REF!=BO$9),\"\"))))\n     *(_xlfn.ANCHORARRAY($E11)<=MAX(_xlfn.VSTACK(_xlfn._xlws.FILTER(Data[Adj Close],#REF!=BO$9),IFERROR(_xlfn._xlws.FILTER(Data[Adj Close],#REF!=BO$9),\"\")))),\n\n_xlfn.IFS(Starting_Symbol=Up_Symbol,IF(MOD(BO9,2)=1,Up_Symbol,Down_Symbol),\n        Starting_Symbol=Down_Symbol,IF(MOD(BO9,2)=1,Down_Symbol,Up_Symbol)),\"\"),\n\n\"\")","v":""},{"$f":"IFERROR(\nIF((_xlfn.ANCHORARRAY($F11)>=MIN(_xlfn.VSTACK(_xlfn._xlws.FILTER(Data[Adj Close],#REF!=BP$9),IFERROR(_xlfn._xlws.FILTER(Data[Adj Close],#REF!=BP$9),\"\"))))\n     *(_xlfn.ANCHORARRAY($E11)<=MAX(_xlfn.VSTACK(_xlfn._xlws.FILTER(Data[Adj Close],#REF!=BP$9),IFERROR(_xlfn._xlws.FILTER(Data[Adj Close],#REF!=BP$9),\"\")))),\n\n_xlfn.IFS(Starting_Symbol=Up_Symbol,IF(MOD(BP9,2)=1,Up_Symbol,Down_Symbol),\n        Starting_Symbol=Down_Symbol,IF(MOD(BP9,2)=1,Down_Symbol,Up_Symbol)),\"\"),\n\n\"\")","v":""},{"$f":"IFERROR(\nIF((_xlfn.ANCHORARRAY($F11)>=MIN(_xlfn.VSTACK(_xlfn._xlws.FILTER(Data[Adj Close],#REF!=BQ$9),IFERROR(_xlfn._xlws.FILTER(Data[Adj Close],#REF!=BQ$9),\"\"))))\n     *(_xlfn.ANCHORARRAY($E11)<=MAX(_xlfn.VSTACK(_xlfn._xlws.FILTER(Data[Adj Close],#REF!=BQ$9),IFERROR(_xlfn._xlws.FILTER(Data[Adj Close],#REF!=BQ$9),\"\")))),\n\n_xlfn.IFS(Starting_Symbol=Up_Symbol,IF(MOD(BQ9,2)=1,Up_Symbol,Down_Symbol),\n        Starting_Symbol=Down_Symbol,IF(MOD(BQ9,2)=1,Down_Symbol,Up_Symbol)),\"\"),\n\n\"\")","v":""},{"$f":"IFERROR(\nIF((_xlfn.ANCHORARRAY($F11)>=MIN(_xlfn.VSTACK(_xlfn._xlws.FILTER(Data[Adj Close],#REF!=BR$9),IFERROR(_xlfn._xlws.FILTER(Data[Adj Close],#REF!=BR$9),\"\"))))\n     *(_xlfn.ANCHORARRAY($E11)<=MAX(_xlfn.VSTACK(_xlfn._xlws.FILTER(Data[Adj Close],#REF!=BR$9),IFERROR(_xlfn._xlws.FILTER(Data[Adj Close],#REF!=BR$9),\"\")))),\n\n_xlfn.IFS(Starting_Symbol=Up_Symbol,IF(MOD(BR9,2)=1,Up_Symbol,Down_Symbol),\n        Starting_Symbol=Down_Symbol,IF(MOD(BR9,2)=1,Down_Symbol,Up_Symbol)),\"\"),\n\n\"\")","v":""},{"$f":"IFERROR(\nIF((_xlfn.ANCHORARRAY($F11)>=MIN(_xlfn.VSTACK(_xlfn._xlws.FILTER(Data[Adj Close],#REF!=BS$9),IFERROR(_xlfn._xlws.FILTER(Data[Adj Close],#REF!=BS$9),\"\"))))\n     *(_xlfn.ANCHORARRAY($E11)<=MAX(_xlfn.VSTACK(_xlfn._xlws.FILTER(Data[Adj Close],#REF!=BS$9),IFERROR(_xlfn._xlws.FILTER(Data[Adj Close],#REF!=BS$9),\"\")))),\n\n_xlfn.IFS(Starting_Symbol=Up_Symbol,IF(MOD(BS9,2)=1,Up_Symbol,Down_Symbol),\n        Starting_Symbol=Down_Symbol,IF(MOD(BS9,2)=1,Down_Symbol,Up_Symbol)),\"\"),\n\n\"\")","v":""},{"$f":"IFERROR(\nIF((_xlfn.ANCHORARRAY($F11)>=MIN(_xlfn.VSTACK(_xlfn._xlws.FILTER(Data[Adj Close],#REF!=BT$9),IFERROR(_xlfn._xlws.FILTER(Data[Adj Close],#REF!=BT$9),\"\"))))\n     *(_xlfn.ANCHORARRAY($E11)<=MAX(_xlfn.VSTACK(_xlfn._xlws.FILTER(Data[Adj Close],#REF!=BT$9),IFERROR(_xlfn._xlws.FILTER(Data[Adj Close],#REF!=BT$9),\"\")))),\n\n_xlfn.IFS(Starting_Symbol=Up_Symbol,IF(MOD(BT9,2)=1,Up_Symbol,Down_Symbol),\n        Starting_Symbol=Down_Symbol,IF(MOD(BT9,2)=1,Down_Symbol,Up_Symbol)),\"\"),\n\n\"\")","v":""},{"$f":"IFERROR(\nIF((_xlfn.ANCHORARRAY($F11)>=MIN(_xlfn.VSTACK(_xlfn._xlws.FILTER(Data[Adj Close],#REF!=BU$9),IFERROR(_xlfn._xlws.FILTER(Data[Adj Close],#REF!=BU$9),\"\"))))\n     *(_xlfn.ANCHORARRAY($E11)<=MAX(_xlfn.VSTACK(_xlfn._xlws.FILTER(Data[Adj Close],#REF!=BU$9),IFERROR(_xlfn._xlws.FILTER(Data[Adj Close],#REF!=BU$9),\"\")))),\n\n_xlfn.IFS(Starting_Symbol=Up_Symbol,IF(MOD(BU9,2)=1,Up_Symbol,Down_Symbol),\n        Starting_Symbol=Down_Symbol,IF(MOD(BU9,2)=1,Down_Symbol,Up_Symbol)),\"\"),\n\n\"\")","v":""},{"$f":"IFERROR(\nIF((_xlfn.ANCHORARRAY($F11)>=MIN(_xlfn.VSTACK(_xlfn._xlws.FILTER(Data[Adj Close],#REF!=BV$9),IFERROR(_xlfn._xlws.FILTER(Data[Adj Close],#REF!=BV$9),\"\"))))\n     *(_xlfn.ANCHORARRAY($E11)<=MAX(_xlfn.VSTACK(_xlfn._xlws.FILTER(Data[Adj Close],#REF!=BV$9),IFERROR(_xlfn._xlws.FILTER(Data[Adj Close],#REF!=BV$9),\"\")))),\n\n_xlfn.IFS(Starting_Symbol=Up_Symbol,IF(MOD(BV9,2)=1,Up_Symbol,Down_Symbol),\n        Starting_Symbol=Down_Symbol,IF(MOD(BV9,2)=1,Down_Symbol,Up_Symbol)),\"\"),\n\n\"\")","v":""},{"$f":"IFERROR(\nIF((_xlfn.ANCHORARRAY($F11)>=MIN(_xlfn.VSTACK(_xlfn._xlws.FILTER(Data[Adj Close],#REF!=BW$9),IFERROR(_xlfn._xlws.FILTER(Data[Adj Close],#REF!=BW$9),\"\"))))\n     *(_xlfn.ANCHORARRAY($E11)<=MAX(_xlfn.VSTACK(_xlfn._xlws.FILTER(Data[Adj Close],#REF!=BW$9),IFERROR(_xlfn._xlws.FILTER(Data[Adj Close],#REF!=BW$9),\"\")))),\n\n_xlfn.IFS(Starting_Symbol=Up_Symbol,IF(MOD(BW9,2)=1,Up_Symbol,Down_Symbol),\n        Starting_Symbol=Down_Symbol,IF(MOD(BW9,2)=1,Down_Symbol,Up_Symbol)),\"\"),\n\n\"\")","v":""},{"$f":"IFERROR(\nIF((_xlfn.ANCHORARRAY($F11)>=MIN(_xlfn.VSTACK(_xlfn._xlws.FILTER(Data[Adj Close],#REF!=BX$9),IFERROR(_xlfn._xlws.FILTER(Data[Adj Close],#REF!=BX$9),\"\"))))\n     *(_xlfn.ANCHORARRAY($E11)<=MAX(_xlfn.VSTACK(_xlfn._xlws.FILTER(Data[Adj Close],#REF!=BX$9),IFERROR(_xlfn._xlws.FILTER(Data[Adj Close],#REF!=BX$9),\"\")))),\n\n_xlfn.IFS(Starting_Symbol=Up_Symbol,IF(MOD(BX9,2)=1,Up_Symbol,Down_Symbol),\n        Starting_Symbol=Down_Symbol,IF(MOD(BX9,2)=1,Down_Symbol,Up_Symbol)),\"\"),\n\n\"\")","v":""},{"$f":"IFERROR(\nIF((_xlfn.ANCHORARRAY($F11)>=MIN(_xlfn.VSTACK(_xlfn._xlws.FILTER(Data[Adj Close],#REF!=BY$9),IFERROR(_xlfn._xlws.FILTER(Data[Adj Close],#REF!=BY$9),\"\"))))\n     *(_xlfn.ANCHORARRAY($E11)<=MAX(_xlfn.VSTACK(_xlfn._xlws.FILTER(Data[Adj Close],#REF!=BY$9),IFERROR(_xlfn._xlws.FILTER(Data[Adj Close],#REF!=BY$9),\"\")))),\n\n_xlfn.IFS(Starting_Symbol=Up_Symbol,IF(MOD(BY9,2)=1,Up_Symbol,Down_Symbol),\n        Starting_Symbol=Down_Symbol,IF(MOD(BY9,2)=1,Down_Symbol,Up_Symbol)),\"\"),\n\n\"\")","v":""},{"$f":"IFERROR(\nIF((_xlfn.ANCHORARRAY($F11)>=MIN(_xlfn.VSTACK(_xlfn._xlws.FILTER(Data[Adj Close],#REF!=BZ$9),IFERROR(_xlfn._xlws.FILTER(Data[Adj Close],#REF!=BZ$9),\"\"))))\n     *(_xlfn.ANCHORARRAY($E11)<=MAX(_xlfn.VSTACK(_xlfn._xlws.FILTER(Data[Adj Close],#REF!=BZ$9),IFERROR(_xlfn._xlws.FILTER(Data[Adj Close],#REF!=BZ$9),\"\")))),\n\n_xlfn.IFS(Starting_Symbol=Up_Symbol,IF(MOD(BZ9,2)=1,Up_Symbol,Down_Symbol),\n        Starting_Symbol=Down_Symbol,IF(MOD(BZ9,2)=1,Down_Symbol,Up_Symbol)),\"\"),\n\n\"\")","v":""},{"$f":"IFERROR(\nIF((_xlfn.ANCHORARRAY($F11)>=MIN(_xlfn.VSTACK(_xlfn._xlws.FILTER(Data[Adj Close],#REF!=CA$9),IFERROR(_xlfn._xlws.FILTER(Data[Adj Close],#REF!=CA$9),\"\"))))\n     *(_xlfn.ANCHORARRAY($E11)<=MAX(_xlfn.VSTACK(_xlfn._xlws.FILTER(Data[Adj Close],#REF!=CA$9),IFERROR(_xlfn._xlws.FILTER(Data[Adj Close],#REF!=CA$9),\"\")))),\n\n_xlfn.IFS(Starting_Symbol=Up_Symbol,IF(MOD(CA9,2)=1,Up_Symbol,Down_Symbol),\n        Starting_Symbol=Down_Symbol,IF(MOD(CA9,2)=1,Down_Symbol,Up_Symbol)),\"\"),\n\n\"\")","v":""},{"$f":"IFERROR(\nIF((_xlfn.ANCHORARRAY($F11)>=MIN(_xlfn.VSTACK(_xlfn._xlws.FILTER(Data[Adj Close],#REF!=CB$9),IFERROR(_xlfn._xlws.FILTER(Data[Adj Close],#REF!=CB$9),\"\"))))\n     *(_xlfn.ANCHORARRAY($E11)<=MAX(_xlfn.VSTACK(_xlfn._xlws.FILTER(Data[Adj Close],#REF!=CB$9),IFERROR(_xlfn._xlws.FILTER(Data[Adj Close],#REF!=CB$9),\"\")))),\n\n_xlfn.IFS(Starting_Symbol=Up_Symbol,IF(MOD(CB9,2)=1,Up_Symbol,Down_Symbol),\n        Starting_Symbol=Down_Symbol,IF(MOD(CB9,2)=1,Down_Symbol,Up_Symbol)),\"\"),\n\n\"\")","v":""},{"$f":"IFERROR(\nIF((_xlfn.ANCHORARRAY($F11)>=MIN(_xlfn.VSTACK(_xlfn._xlws.FILTER(Data[Adj Close],#REF!=CC$9),IFERROR(_xlfn._xlws.FILTER(Data[Adj Close],#REF!=CC$9),\"\"))))\n     *(_xlfn.ANCHORARRAY($E11)<=MAX(_xlfn.VSTACK(_xlfn._xlws.FILTER(Data[Adj Close],#REF!=CC$9),IFERROR(_xlfn._xlws.FILTER(Data[Adj Close],#REF!=CC$9),\"\")))),\n\n_xlfn.IFS(Starting_Symbol=Up_Symbol,IF(MOD(CC9,2)=1,Up_Symbol,Down_Symbol),\n        Starting_Symbol=Down_Symbol,IF(MOD(CC9,2)=1,Down_Symbol,Up_Symbol)),\"\"),\n\n\"\")","v":""},{"$f":"IFERROR(\nIF((_xlfn.ANCHORARRAY($F11)>=MIN(_xlfn.VSTACK(_xlfn._xlws.FILTER(Data[Adj Close],#REF!=CD$9),IFERROR(_xlfn._xlws.FILTER(Data[Adj Close],#REF!=CD$9),\"\"))))\n     *(_xlfn.ANCHORARRAY($E11)<=MAX(_xlfn.VSTACK(_xlfn._xlws.FILTER(Data[Adj Close],#REF!=CD$9),IFERROR(_xlfn._xlws.FILTER(Data[Adj Close],#REF!=CD$9),\"\")))),\n\n_xlfn.IFS(Starting_Symbol=Up_Symbol,IF(MOD(CD9,2)=1,Up_Symbol,Down_Symbol),\n        Starting_Symbol=Down_Symbol,IF(MOD(CD9,2)=1,Down_Symbol,Up_Symbol)),\"\"),\n\n\"\")","v":""},{"$f":"IFERROR(\nIF((_xlfn.ANCHORARRAY($F11)>=MIN(_xlfn.VSTACK(_xlfn._xlws.FILTER(Data[Adj Close],#REF!=CE$9),IFERROR(_xlfn._xlws.FILTER(Data[Adj Close],#REF!=CE$9),\"\"))))\n     *(_xlfn.ANCHORARRAY($E11)<=MAX(_xlfn.VSTACK(_xlfn._xlws.FILTER(Data[Adj Close],#REF!=CE$9),IFERROR(_xlfn._xlws.FILTER(Data[Adj Close],#REF!=CE$9),\"\")))),\n\n_xlfn.IFS(Starting_Symbol=Up_Symbol,IF(MOD(CE9,2)=1,Up_Symbol,Down_Symbol),\n        Starting_Symbol=Down_Symbol,IF(MOD(CE9,2)=1,Down_Symbol,Up_Symbol)),\"\"),\n\n\"\")","v":""},{"$f":"IFERROR(\nIF((_xlfn.ANCHORARRAY($F11)>=MIN(_xlfn.VSTACK(_xlfn._xlws.FILTER(Data[Adj Close],#REF!=CF$9),IFERROR(_xlfn._xlws.FILTER(Data[Adj Close],#REF!=CF$9),\"\"))))\n     *(_xlfn.ANCHORARRAY($E11)<=MAX(_xlfn.VSTACK(_xlfn._xlws.FILTER(Data[Adj Close],#REF!=CF$9),IFERROR(_xlfn._xlws.FILTER(Data[Adj Close],#REF!=CF$9),\"\")))),\n\n_xlfn.IFS(Starting_Symbol=Up_Symbol,IF(MOD(CF9,2)=1,Up_Symbol,Down_Symbol),\n        Starting_Symbol=Down_Symbol,IF(MOD(CF9,2)=1,Down_Symbol,Up_Symbol)),\"\"),\n\n\"\")","v":""},{"$f":"IFERROR(\nIF((_xlfn.ANCHORARRAY($F11)>=MIN(_xlfn.VSTACK(_xlfn._xlws.FILTER(Data[Adj Close],#REF!=CG$9),IFERROR(_xlfn._xlws.FILTER(Data[Adj Close],#REF!=CG$9),\"\"))))\n     *(_xlfn.ANCHORARRAY($E11)<=MAX(_xlfn.VSTACK(_xlfn._xlws.FILTER(Data[Adj Close],#REF!=CG$9),IFERROR(_xlfn._xlws.FILTER(Data[Adj Close],#REF!=CG$9),\"\")))),\n\n_xlfn.IFS(Starting_Symbol=Up_Symbol,IF(MOD(CG9,2)=1,Up_Symbol,Down_Symbol),\n        Starting_Symbol=Down_Symbol,IF(MOD(CG9,2)=1,Down_Symbol,Up_Symbol)),\"\"),\n\n\"\")","v":""},{"$f":"IFERROR(\nIF((_xlfn.ANCHORARRAY($F11)>=MIN(_xlfn.VSTACK(_xlfn._xlws.FILTER(Data[Adj Close],#REF!=CH$9),IFERROR(_xlfn._xlws.FILTER(Data[Adj Close],#REF!=CH$9),\"\"))))\n     *(_xlfn.ANCHORARRAY($E11)<=MAX(_xlfn.VSTACK(_xlfn._xlws.FILTER(Data[Adj Close],#REF!=CH$9),IFERROR(_xlfn._xlws.FILTER(Data[Adj Close],#REF!=CH$9),\"\")))),\n\n_xlfn.IFS(Starting_Symbol=Up_Symbol,IF(MOD(CH9,2)=1,Up_Symbol,Down_Symbol),\n        Starting_Symbol=Down_Symbol,IF(MOD(CH9,2)=1,Down_Symbol,Up_Symbol)),\"\"),\n\n\"\")","v":""},{"$f":"IFERROR(\nIF((_xlfn.ANCHORARRAY($F11)>=MIN(_xlfn.VSTACK(_xlfn._xlws.FILTER(Data[Adj Close],#REF!=CI$9),IFERROR(_xlfn._xlws.FILTER(Data[Adj Close],#REF!=CI$9),\"\"))))\n     *(_xlfn.ANCHORARRAY($E11)<=MAX(_xlfn.VSTACK(_xlfn._xlws.FILTER(Data[Adj Close],#REF!=CI$9),IFERROR(_xlfn._xlws.FILTER(Data[Adj Close],#REF!=CI$9),\"\")))),\n\n_xlfn.IFS(Starting_Symbol=Up_Symbol,IF(MOD(CI9,2)=1,Up_Symbol,Down_Symbol),\n        Starting_Symbol=Down_Symbol,IF(MOD(CI9,2)=1,Down_Symbol,Up_Symbol)),\"\"),\n\n\"\")","v":""},{"$f":"IFERROR(\nIF((_xlfn.ANCHORARRAY($F11)>=MIN(_xlfn.VSTACK(_xlfn._xlws.FILTER(Data[Adj Close],#REF!=CJ$9),IFERROR(_xlfn._xlws.FILTER(Data[Adj Close],#REF!=CJ$9),\"\"))))\n     *(_xlfn.ANCHORARRAY($E11)<=MAX(_xlfn.VSTACK(_xlfn._xlws.FILTER(Data[Adj Close],#REF!=CJ$9),IFERROR(_xlfn._xlws.FILTER(Data[Adj Close],#REF!=CJ$9),\"\")))),\n\n_xlfn.IFS(Starting_Symbol=Up_Symbol,IF(MOD(CJ9,2)=1,Up_Symbol,Down_Symbol),\n        Starting_Symbol=Down_Symbol,IF(MOD(CJ9,2)=1,Down_Symbol,Up_Symbol)),\"\"),\n\n\"\")","v":""},{"$f":"IFERROR(\nIF((_xlfn.ANCHORARRAY($F11)>=MIN(_xlfn.VSTACK(_xlfn._xlws.FILTER(Data[Adj Close],#REF!=CK$9),IFERROR(_xlfn._xlws.FILTER(Data[Adj Close],#REF!=CK$9),\"\"))))\n     *(_xlfn.ANCHORARRAY($E11)<=MAX(_xlfn.VSTACK(_xlfn._xlws.FILTER(Data[Adj Close],#REF!=CK$9),IFERROR(_xlfn._xlws.FILTER(Data[Adj Close],#REF!=CK$9),\"\")))),\n\n_xlfn.IFS(Starting_Symbol=Up_Symbol,IF(MOD(CK9,2)=1,Up_Symbol,Down_Symbol),\n        Starting_Symbol=Down_Symbol,IF(MOD(CK9,2)=1,Down_Symbol,Up_Symbol)),\"\"),\n\n\"\")","v":""},{"$f":"IFERROR(\nIF((_xlfn.ANCHORARRAY($F11)>=MIN(_xlfn.VSTACK(_xlfn._xlws.FILTER(Data[Adj Close],#REF!=CL$9),IFERROR(_xlfn._xlws.FILTER(Data[Adj Close],#REF!=CL$9),\"\"))))\n     *(_xlfn.ANCHORARRAY($E11)<=MAX(_xlfn.VSTACK(_xlfn._xlws.FILTER(Data[Adj Close],#REF!=CL$9),IFERROR(_xlfn._xlws.FILTER(Data[Adj Close],#REF!=CL$9),\"\")))),\n\n_xlfn.IFS(Starting_Symbol=Up_Symbol,IF(MOD(CL9,2)=1,Up_Symbol,Down_Symbol),\n        Starting_Symbol=Down_Symbol,IF(MOD(CL9,2)=1,Down_Symbol,Up_Symbol)),\"\"),\n\n\"\")","v":""},{"$f":"IFERROR(\nIF((_xlfn.ANCHORARRAY($F11)>=MIN(_xlfn.VSTACK(_xlfn._xlws.FILTER(Data[Adj Close],#REF!=CM$9),IFERROR(_xlfn._xlws.FILTER(Data[Adj Close],#REF!=CM$9),\"\"))))\n     *(_xlfn.ANCHORARRAY($E11)<=MAX(_xlfn.VSTACK(_xlfn._xlws.FILTER(Data[Adj Close],#REF!=CM$9),IFERROR(_xlfn._xlws.FILTER(Data[Adj Close],#REF!=CM$9),\"\")))),\n\n_xlfn.IFS(Starting_Symbol=Up_Symbol,IF(MOD(CM9,2)=1,Up_Symbol,Down_Symbol),\n        Starting_Symbol=Down_Symbol,IF(MOD(CM9,2)=1,Down_Symbol,Up_Symbol)),\"\"),\n\n\"\")","v":""},{"$f":"IFERROR(\nIF((_xlfn.ANCHORARRAY($F11)>=MIN(_xlfn.VSTACK(_xlfn._xlws.FILTER(Data[Adj Close],#REF!=CN$9),IFERROR(_xlfn._xlws.FILTER(Data[Adj Close],#REF!=CN$9),\"\"))))\n     *(_xlfn.ANCHORARRAY($E11)<=MAX(_xlfn.VSTACK(_xlfn._xlws.FILTER(Data[Adj Close],#REF!=CN$9),IFERROR(_xlfn._xlws.FILTER(Data[Adj Close],#REF!=CN$9),\"\")))),\n\n_xlfn.IFS(Starting_Symbol=Up_Symbol,IF(MOD(CN9,2)=1,Up_Symbol,Down_Symbol),\n        Starting_Symbol=Down_Symbol,IF(MOD(CN9,2)=1,Down_Symbol,Up_Symbol)),\"\"),\n\n\"\")","v":""},{"$f":"IFERROR(\nIF((_xlfn.ANCHORARRAY($F11)>=MIN(_xlfn.VSTACK(_xlfn._xlws.FILTER(Data[Adj Close],#REF!=CO$9),IFERROR(_xlfn._xlws.FILTER(Data[Adj Close],#REF!=CO$9),\"\"))))\n     *(_xlfn.ANCHORARRAY($E11)<=MAX(_xlfn.VSTACK(_xlfn._xlws.FILTER(Data[Adj Close],#REF!=CO$9),IFERROR(_xlfn._xlws.FILTER(Data[Adj Close],#REF!=CO$9),\"\")))),\n\n_xlfn.IFS(Starting_Symbol=Up_Symbol,IF(MOD(CO9,2)=1,Up_Symbol,Down_Symbol),\n        Starting_Symbol=Down_Symbol,IF(MOD(CO9,2)=1,Down_Symbol,Up_Symbol)),\"\"),\n\n\"\")","v":""},{"$f":"IFERROR(\nIF((_xlfn.ANCHORARRAY($F11)>=MIN(_xlfn.VSTACK(_xlfn._xlws.FILTER(Data[Adj Close],#REF!=CP$9),IFERROR(_xlfn._xlws.FILTER(Data[Adj Close],#REF!=CP$9),\"\"))))\n     *(_xlfn.ANCHORARRAY($E11)<=MAX(_xlfn.VSTACK(_xlfn._xlws.FILTER(Data[Adj Close],#REF!=CP$9),IFERROR(_xlfn._xlws.FILTER(Data[Adj Close],#REF!=CP$9),\"\")))),\n\n_xlfn.IFS(Starting_Symbol=Up_Symbol,IF(MOD(CP9,2)=1,Up_Symbol,Down_Symbol),\n        Starting_Symbol=Down_Symbol,IF(MOD(CP9,2)=1,Down_Symbol,Up_Symbol)),\"\"),\n\n\"\")","v":""},{"$f":"IFERROR(\nIF((_xlfn.ANCHORARRAY($F11)>=MIN(_xlfn.VSTACK(_xlfn._xlws.FILTER(Data[Adj Close],#REF!=CQ$9),IFERROR(_xlfn._xlws.FILTER(Data[Adj Close],#REF!=CQ$9),\"\"))))\n     *(_xlfn.ANCHORARRAY($E11)<=MAX(_xlfn.VSTACK(_xlfn._xlws.FILTER(Data[Adj Close],#REF!=CQ$9),IFERROR(_xlfn._xlws.FILTER(Data[Adj Close],#REF!=CQ$9),\"\")))),\n\n_xlfn.IFS(Starting_Symbol=Up_Symbol,IF(MOD(CQ9,2)=1,Up_Symbol,Down_Symbol),\n        Starting_Symbol=Down_Symbol,IF(MOD(CQ9,2)=1,Down_Symbol,Up_Symbol)),\"\"),\n\n\"\")","v":""},{"$f":"IFERROR(\nIF((_xlfn.ANCHORARRAY($F11)>=MIN(_xlfn.VSTACK(_xlfn._xlws.FILTER(Data[Adj Close],#REF!=CR$9),IFERROR(_xlfn._xlws.FILTER(Data[Adj Close],#REF!=CR$9),\"\"))))\n     *(_xlfn.ANCHORARRAY($E11)<=MAX(_xlfn.VSTACK(_xlfn._xlws.FILTER(Data[Adj Close],#REF!=CR$9),IFERROR(_xlfn._xlws.FILTER(Data[Adj Close],#REF!=CR$9),\"\")))),\n\n_xlfn.IFS(Starting_Symbol=Up_Symbol,IF(MOD(CR9,2)=1,Up_Symbol,Down_Symbol),\n        Starting_Symbol=Down_Symbol,IF(MOD(CR9,2)=1,Down_Symbol,Up_Symbol)),\"\"),\n\n\"\")","v":""},{"$f":"IFERROR(\nIF((_xlfn.ANCHORARRAY($F11)>=MIN(_xlfn.VSTACK(_xlfn._xlws.FILTER(Data[Adj Close],#REF!=CS$9),IFERROR(_xlfn._xlws.FILTER(Data[Adj Close],#REF!=CS$9),\"\"))))\n     *(_xlfn.ANCHORARRAY($E11)<=MAX(_xlfn.VSTACK(_xlfn._xlws.FILTER(Data[Adj Close],#REF!=CS$9),IFERROR(_xlfn._xlws.FILTER(Data[Adj Close],#REF!=CS$9),\"\")))),\n\n_xlfn.IFS(Starting_Symbol=Up_Symbol,IF(MOD(CS9,2)=1,Up_Symbol,Down_Symbol),\n        Starting_Symbol=Down_Symbol,IF(MOD(CS9,2)=1,Down_Symbol,Up_Symbol)),\"\"),\n\n\"\")","v":""},{"$f":"IFERROR(\nIF((_xlfn.ANCHORARRAY($F11)>=MIN(_xlfn.VSTACK(_xlfn._xlws.FILTER(Data[Adj Close],#REF!=CT$9),IFERROR(_xlfn._xlws.FILTER(Data[Adj Close],#REF!=CT$9),\"\"))))\n     *(_xlfn.ANCHORARRAY($E11)<=MAX(_xlfn.VSTACK(_xlfn._xlws.FILTER(Data[Adj Close],#REF!=CT$9),IFERROR(_xlfn._xlws.FILTER(Data[Adj Close],#REF!=CT$9),\"\")))),\n\n_xlfn.IFS(Starting_Symbol=Up_Symbol,IF(MOD(CT9,2)=1,Up_Symbol,Down_Symbol),\n        Starting_Symbol=Down_Symbol,IF(MOD(CT9,2)=1,Down_Symbol,Up_Symbol)),\"\"),\n\n\"\")","v":""},{"$f":"IFERROR(\nIF((_xlfn.ANCHORARRAY($F11)>=MIN(_xlfn.VSTACK(_xlfn._xlws.FILTER(Data[Adj Close],#REF!=CU$9),IFERROR(_xlfn._xlws.FILTER(Data[Adj Close],#REF!=CU$9),\"\"))))\n     *(_xlfn.ANCHORARRAY($E11)<=MAX(_xlfn.VSTACK(_xlfn._xlws.FILTER(Data[Adj Close],#REF!=CU$9),IFERROR(_xlfn._xlws.FILTER(Data[Adj Close],#REF!=CU$9),\"\")))),\n\n_xlfn.IFS(Starting_Symbol=Up_Symbol,IF(MOD(CU9,2)=1,Up_Symbol,Down_Symbol),\n        Starting_Symbol=Down_Symbol,IF(MOD(CU9,2)=1,Down_Symbol,Up_Symbol)),\"\"),\n\n\"\")","v":""},{"$f":"IFERROR(\nIF((_xlfn.ANCHORARRAY($F11)>=MIN(_xlfn.VSTACK(_xlfn._xlws.FILTER(Data[Adj Close],#REF!=CV$9),IFERROR(_xlfn._xlws.FILTER(Data[Adj Close],#REF!=CV$9),\"\"))))\n     *(_xlfn.ANCHORARRAY($E11)<=MAX(_xlfn.VSTACK(_xlfn._xlws.FILTER(Data[Adj Close],#REF!=CV$9),IFERROR(_xlfn._xlws.FILTER(Data[Adj Close],#REF!=CV$9),\"\")))),\n\n_xlfn.IFS(Starting_Symbol=Up_Symbol,IF(MOD(CV9,2)=1,Up_Symbol,Down_Symbol),\n        Starting_Symbol=Down_Symbol,IF(MOD(CV9,2)=1,Down_Symbol,Up_Symbol)),\"\"),\n\n\"\")","v":""},{"$f":"IFERROR(\nIF((_xlfn.ANCHORARRAY($F11)>=MIN(_xlfn.VSTACK(_xlfn._xlws.FILTER(Data[Adj Close],#REF!=CW$9),IFERROR(_xlfn._xlws.FILTER(Data[Adj Close],#REF!=CW$9),\"\"))))\n     *(_xlfn.ANCHORARRAY($E11)<=MAX(_xlfn.VSTACK(_xlfn._xlws.FILTER(Data[Adj Close],#REF!=CW$9),IFERROR(_xlfn._xlws.FILTER(Data[Adj Close],#REF!=CW$9),\"\")))),\n\n_xlfn.IFS(Starting_Symbol=Up_Symbol,IF(MOD(CW9,2)=1,Up_Symbol,Down_Symbol),\n        Starting_Symbol=Down_Symbol,IF(MOD(CW9,2)=1,Down_Symbol,Up_Symbol)),\"\"),\n\n\"\")","v":""},{"$f":"IFERROR(\nIF((_xlfn.ANCHORARRAY($F11)>=MIN(_xlfn.VSTACK(_xlfn._xlws.FILTER(Data[Adj Close],#REF!=CX$9),IFERROR(_xlfn._xlws.FILTER(Data[Adj Close],#REF!=CX$9),\"\"))))\n     *(_xlfn.ANCHORARRAY($E11)<=MAX(_xlfn.VSTACK(_xlfn._xlws.FILTER(Data[Adj Close],#REF!=CX$9),IFERROR(_xlfn._xlws.FILTER(Data[Adj Close],#REF!=CX$9),\"\")))),\n\n_xlfn.IFS(Starting_Symbol=Up_Symbol,IF(MOD(CX9,2)=1,Up_Symbol,Down_Symbol),\n        Starting_Symbol=Down_Symbol,IF(MOD(CX9,2)=1,Down_Symbol,Up_Symbol)),\"\"),\n\n\"\")","v":""},{"$f":"IFERROR(\nIF((_xlfn.ANCHORARRAY($F11)>=MIN(_xlfn.VSTACK(_xlfn._xlws.FILTER(Data[Adj Close],#REF!=CY$9),IFERROR(_xlfn._xlws.FILTER(Data[Adj Close],#REF!=CY$9),\"\"))))\n     *(_xlfn.ANCHORARRAY($E11)<=MAX(_xlfn.VSTACK(_xlfn._xlws.FILTER(Data[Adj Close],#REF!=CY$9),IFERROR(_xlfn._xlws.FILTER(Data[Adj Close],#REF!=CY$9),\"\")))),\n\n_xlfn.IFS(Starting_Symbol=Up_Symbol,IF(MOD(CY9,2)=1,Up_Symbol,Down_Symbol),\n        Starting_Symbol=Down_Symbol,IF(MOD(CY9,2)=1,Down_Symbol,Up_Symbol)),\"\"),\n\n\"\")","v":""},{"$f":"IFERROR(\nIF((_xlfn.ANCHORARRAY($F11)>=MIN(_xlfn.VSTACK(_xlfn._xlws.FILTER(Data[Adj Close],#REF!=CZ$9),IFERROR(_xlfn._xlws.FILTER(Data[Adj Close],#REF!=CZ$9),\"\"))))\n     *(_xlfn.ANCHORARRAY($E11)<=MAX(_xlfn.VSTACK(_xlfn._xlws.FILTER(Data[Adj Close],#REF!=CZ$9),IFERROR(_xlfn._xlws.FILTER(Data[Adj Close],#REF!=CZ$9),\"\")))),\n\n_xlfn.IFS(Starting_Symbol=Up_Symbol,IF(MOD(CZ9,2)=1,Up_Symbol,Down_Symbol),\n        Starting_Symbol=Down_Symbol,IF(MOD(CZ9,2)=1,Down_Symbol,Up_Symbol)),\"\"),\n\n\"\")","v":""},{"$f":"IFERROR(\nIF((_xlfn.ANCHORARRAY($F11)>=MIN(_xlfn.VSTACK(_xlfn._xlws.FILTER(Data[Adj Close],#REF!=DA$9),IFERROR(_xlfn._xlws.FILTER(Data[Adj Close],#REF!=DA$9),\"\"))))\n     *(_xlfn.ANCHORARRAY($E11)<=MAX(_xlfn.VSTACK(_xlfn._xlws.FILTER(Data[Adj Close],#REF!=DA$9),IFERROR(_xlfn._xlws.FILTER(Data[Adj Close],#REF!=DA$9),\"\")))),\n\n_xlfn.IFS(Starting_Symbol=Up_Symbol,IF(MOD(DA9,2)=1,Up_Symbol,Down_Symbol),\n        Starting_Symbol=Down_Symbol,IF(MOD(DA9,2)=1,Down_Symbol,Up_Symbol)),\"\"),\n\n\"\")","v":""},{"$f":"IFERROR(\nIF((_xlfn.ANCHORARRAY($F11)>=MIN(_xlfn.VSTACK(_xlfn._xlws.FILTER(Data[Adj Close],#REF!=DB$9),IFERROR(_xlfn._xlws.FILTER(Data[Adj Close],#REF!=DB$9),\"\"))))\n     *(_xlfn.ANCHORARRAY($E11)<=MAX(_xlfn.VSTACK(_xlfn._xlws.FILTER(Data[Adj Close],#REF!=DB$9),IFERROR(_xlfn._xlws.FILTER(Data[Adj Close],#REF!=DB$9),\"\")))),\n\n_xlfn.IFS(Starting_Symbol=Up_Symbol,IF(MOD(DB9,2)=1,Up_Symbol,Down_Symbol),\n        Starting_Symbol=Down_Symbol,IF(MOD(DB9,2)=1,Down_Symbol,Up_Symbol)),\"\"),\n\n\"\")","v":""},{"$f":"IFERROR(\nIF((_xlfn.ANCHORARRAY($F11)>=MIN(_xlfn.VSTACK(_xlfn._xlws.FILTER(Data[Adj Close],#REF!=DC$9),IFERROR(_xlfn._xlws.FILTER(Data[Adj Close],#REF!=DC$9),\"\"))))\n     *(_xlfn.ANCHORARRAY($E11)<=MAX(_xlfn.VSTACK(_xlfn._xlws.FILTER(Data[Adj Close],#REF!=DC$9),IFERROR(_xlfn._xlws.FILTER(Data[Adj Close],#REF!=DC$9),\"\")))),\n\n_xlfn.IFS(Starting_Symbol=Up_Symbol,IF(MOD(DC9,2)=1,Up_Symbol,Down_Symbol),\n        Starting_Symbol=Down_Symbol,IF(MOD(DC9,2)=1,Down_Symbol,Up_Symbol)),\"\"),\n\n\"\")","v":""},{"$f":"IFERROR(\nIF((_xlfn.ANCHORARRAY($F11)>=MIN(_xlfn.VSTACK(_xlfn._xlws.FILTER(Data[Adj Close],#REF!=DD$9),IFERROR(_xlfn._xlws.FILTER(Data[Adj Close],#REF!=DD$9),\"\"))))\n     *(_xlfn.ANCHORARRAY($E11)<=MAX(_xlfn.VSTACK(_xlfn._xlws.FILTER(Data[Adj Close],#REF!=DD$9),IFERROR(_xlfn._xlws.FILTER(Data[Adj Close],#REF!=DD$9),\"\")))),\n\n_xlfn.IFS(Starting_Symbol=Up_Symbol,IF(MOD(DD9,2)=1,Up_Symbol,Down_Symbol),\n        Starting_Symbol=Down_Symbol,IF(MOD(DD9,2)=1,Down_Symbol,Up_Symbol)),\"\"),\n\n\"\")","v":""},{"$f":"IFERROR(\nIF((_xlfn.ANCHORARRAY($F11)>=MIN(_xlfn.VSTACK(_xlfn._xlws.FILTER(Data[Adj Close],#REF!=DE$9),IFERROR(_xlfn._xlws.FILTER(Data[Adj Close],#REF!=DE$9),\"\"))))\n     *(_xlfn.ANCHORARRAY($E11)<=MAX(_xlfn.VSTACK(_xlfn._xlws.FILTER(Data[Adj Close],#REF!=DE$9),IFERROR(_xlfn._xlws.FILTER(Data[Adj Close],#REF!=DE$9),\"\")))),\n\n_xlfn.IFS(Starting_Symbol=Up_Symbol,IF(MOD(DE9,2)=1,Up_Symbol,Down_Symbol),\n        Starting_Symbol=Down_Symbol,IF(MOD(DE9,2)=1,Down_Symbol,Up_Symbol)),\"\"),\n\n\"\")","v":""},{"$f":"IFERROR(\nIF((_xlfn.ANCHORARRAY($F11)>=MIN(_xlfn.VSTACK(_xlfn._xlws.FILTER(Data[Adj Close],#REF!=DF$9),IFERROR(_xlfn._xlws.FILTER(Data[Adj Close],#REF!=DF$9),\"\"))))\n     *(_xlfn.ANCHORARRAY($E11)<=MAX(_xlfn.VSTACK(_xlfn._xlws.FILTER(Data[Adj Close],#REF!=DF$9),IFERROR(_xlfn._xlws.FILTER(Data[Adj Close],#REF!=DF$9),\"\")))),\n\n_xlfn.IFS(Starting_Symbol=Up_Symbol,IF(MOD(DF9,2)=1,Up_Symbol,Down_Symbol),\n        Starting_Symbol=Down_Symbol,IF(MOD(DF9,2)=1,Down_Symbol,Up_Symbol)),\"\"),\n\n\"\")","v":""},{"$f":"IFERROR(\nIF((_xlfn.ANCHORARRAY($F11)>=MIN(_xlfn.VSTACK(_xlfn._xlws.FILTER(Data[Adj Close],#REF!=DG$9),IFERROR(_xlfn._xlws.FILTER(Data[Adj Close],#REF!=DG$9),\"\"))))\n     *(_xlfn.ANCHORARRAY($E11)<=MAX(_xlfn.VSTACK(_xlfn._xlws.FILTER(Data[Adj Close],#REF!=DG$9),IFERROR(_xlfn._xlws.FILTER(Data[Adj Close],#REF!=DG$9),\"\")))),\n\n_xlfn.IFS(Starting_Symbol=Up_Symbol,IF(MOD(DG9,2)=1,Up_Symbol,Down_Symbol),\n        Starting_Symbol=Down_Symbol,IF(MOD(DG9,2)=1,Down_Symbol,Up_Symbol)),\"\"),\n\n\"\")","v":""},{"$f":"IFERROR(\nIF((_xlfn.ANCHORARRAY($F11)>=MIN(_xlfn.VSTACK(_xlfn._xlws.FILTER(Data[Adj Close],#REF!=DH$9),IFERROR(_xlfn._xlws.FILTER(Data[Adj Close],#REF!=DH$9),\"\"))))\n     *(_xlfn.ANCHORARRAY($E11)<=MAX(_xlfn.VSTACK(_xlfn._xlws.FILTER(Data[Adj Close],#REF!=DH$9),IFERROR(_xlfn._xlws.FILTER(Data[Adj Close],#REF!=DH$9),\"\")))),\n\n_xlfn.IFS(Starting_Symbol=Up_Symbol,IF(MOD(DH9,2)=1,Up_Symbol,Down_Symbol),\n        Starting_Symbol=Down_Symbol,IF(MOD(DH9,2)=1,Down_Symbol,Up_Symbol)),\"\"),\n\n\"\")","v":""},{"$f":"IFERROR(\nIF((_xlfn.ANCHORARRAY($F11)>=MIN(_xlfn.VSTACK(_xlfn._xlws.FILTER(Data[Adj Close],#REF!=DI$9),IFERROR(_xlfn._xlws.FILTER(Data[Adj Close],#REF!=DI$9),\"\"))))\n     *(_xlfn.ANCHORARRAY($E11)<=MAX(_xlfn.VSTACK(_xlfn._xlws.FILTER(Data[Adj Close],#REF!=DI$9),IFERROR(_xlfn._xlws.FILTER(Data[Adj Close],#REF!=DI$9),\"\")))),\n\n_xlfn.IFS(Starting_Symbol=Up_Symbol,IF(MOD(DI9,2)=1,Up_Symbol,Down_Symbol),\n        Starting_Symbol=Down_Symbol,IF(MOD(DI9,2)=1,Down_Symbol,Up_Symbol)),\"\"),\n\n\"\")","v":""},{"$f":"IFERROR(\nIF((_xlfn.ANCHORARRAY($F11)>=MIN(_xlfn.VSTACK(_xlfn._xlws.FILTER(Data[Adj Close],#REF!=DJ$9),IFERROR(_xlfn._xlws.FILTER(Data[Adj Close],#REF!=DJ$9),\"\"))))\n     *(_xlfn.ANCHORARRAY($E11)<=MAX(_xlfn.VSTACK(_xlfn._xlws.FILTER(Data[Adj Close],#REF!=DJ$9),IFERROR(_xlfn._xlws.FILTER(Data[Adj Close],#REF!=DJ$9),\"\")))),\n\n_xlfn.IFS(Starting_Symbol=Up_Symbol,IF(MOD(DJ9,2)=1,Up_Symbol,Down_Symbol),\n        Starting_Symbol=Down_Symbol,IF(MOD(DJ9,2)=1,Down_Symbol,Up_Symbol)),\"\"),\n\n\"\")","v":""},{"$f":"IFERROR(\nIF((_xlfn.ANCHORARRAY($F11)>=MIN(_xlfn.VSTACK(_xlfn._xlws.FILTER(Data[Adj Close],#REF!=DK$9),IFERROR(_xlfn._xlws.FILTER(Data[Adj Close],#REF!=DK$9),\"\"))))\n     *(_xlfn.ANCHORARRAY($E11)<=MAX(_xlfn.VSTACK(_xlfn._xlws.FILTER(Data[Adj Close],#REF!=DK$9),IFERROR(_xlfn._xlws.FILTER(Data[Adj Close],#REF!=DK$9),\"\")))),\n\n_xlfn.IFS(Starting_Symbol=Up_Symbol,IF(MOD(DK9,2)=1,Up_Symbol,Down_Symbol),\n        Starting_Symbol=Down_Symbol,IF(MOD(DK9,2)=1,Down_Symbol,Up_Symbol)),\"\"),\n\n\"\")","v":""},{"$f":"IFERROR(\nIF((_xlfn.ANCHORARRAY($F11)>=MIN(_xlfn.VSTACK(_xlfn._xlws.FILTER(Data[Adj Close],#REF!=DL$9),IFERROR(_xlfn._xlws.FILTER(Data[Adj Close],#REF!=DL$9),\"\"))))\n     *(_xlfn.ANCHORARRAY($E11)<=MAX(_xlfn.VSTACK(_xlfn._xlws.FILTER(Data[Adj Close],#REF!=DL$9),IFERROR(_xlfn._xlws.FILTER(Data[Adj Close],#REF!=DL$9),\"\")))),\n\n_xlfn.IFS(Starting_Symbol=Up_Symbol,IF(MOD(DL9,2)=1,Up_Symbol,Down_Symbol),\n        Starting_Symbol=Down_Symbol,IF(MOD(DL9,2)=1,Down_Symbol,Up_Symbol)),\"\"),\n\n\"\")","v":""},{"$f":"IFERROR(\nIF((_xlfn.ANCHORARRAY($F11)>=MIN(_xlfn.VSTACK(_xlfn._xlws.FILTER(Data[Adj Close],#REF!=DM$9),IFERROR(_xlfn._xlws.FILTER(Data[Adj Close],#REF!=DM$9),\"\"))))\n     *(_xlfn.ANCHORARRAY($E11)<=MAX(_xlfn.VSTACK(_xlfn._xlws.FILTER(Data[Adj Close],#REF!=DM$9),IFERROR(_xlfn._xlws.FILTER(Data[Adj Close],#REF!=DM$9),\"\")))),\n\n_xlfn.IFS(Starting_Symbol=Up_Symbol,IF(MOD(DM9,2)=1,Up_Symbol,Down_Symbol),\n        Starting_Symbol=Down_Symbol,IF(MOD(DM9,2)=1,Down_Symbol,Up_Symbol)),\"\"),\n\n\"\")","v":""},{"$f":"IFERROR(\nIF((_xlfn.ANCHORARRAY($F11)>=MIN(_xlfn.VSTACK(_xlfn._xlws.FILTER(Data[Adj Close],#REF!=DN$9),IFERROR(_xlfn._xlws.FILTER(Data[Adj Close],#REF!=DN$9),\"\"))))\n     *(_xlfn.ANCHORARRAY($E11)<=MAX(_xlfn.VSTACK(_xlfn._xlws.FILTER(Data[Adj Close],#REF!=DN$9),IFERROR(_xlfn._xlws.FILTER(Data[Adj Close],#REF!=DN$9),\"\")))),\n\n_xlfn.IFS(Starting_Symbol=Up_Symbol,IF(MOD(DN9,2)=1,Up_Symbol,Down_Symbol),\n        Starting_Symbol=Down_Symbol,IF(MOD(DN9,2)=1,Down_Symbol,Up_Symbol)),\"\"),\n\n\"\")","v":""},{"$f":"IFERROR(\nIF((_xlfn.ANCHORARRAY($F11)>=MIN(_xlfn.VSTACK(_xlfn._xlws.FILTER(Data[Adj Close],#REF!=DO$9),IFERROR(_xlfn._xlws.FILTER(Data[Adj Close],#REF!=DO$9),\"\"))))\n     *(_xlfn.ANCHORARRAY($E11)<=MAX(_xlfn.VSTACK(_xlfn._xlws.FILTER(Data[Adj Close],#REF!=DO$9),IFERROR(_xlfn._xlws.FILTER(Data[Adj Close],#REF!=DO$9),\"\")))),\n\n_xlfn.IFS(Starting_Symbol=Up_Symbol,IF(MOD(DO9,2)=1,Up_Symbol,Down_Symbol),\n        Starting_Symbol=Down_Symbol,IF(MOD(DO9,2)=1,Down_Symbol,Up_Symbol)),\"\"),\n\n\"\")","v":""},{"$f":"IFERROR(\nIF((_xlfn.ANCHORARRAY($F11)>=MIN(_xlfn.VSTACK(_xlfn._xlws.FILTER(Data[Adj Close],#REF!=DP$9),IFERROR(_xlfn._xlws.FILTER(Data[Adj Close],#REF!=DP$9),\"\"))))\n     *(_xlfn.ANCHORARRAY($E11)<=MAX(_xlfn.VSTACK(_xlfn._xlws.FILTER(Data[Adj Close],#REF!=DP$9),IFERROR(_xlfn._xlws.FILTER(Data[Adj Close],#REF!=DP$9),\"\")))),\n\n_xlfn.IFS(Starting_Symbol=Up_Symbol,IF(MOD(DP9,2)=1,Up_Symbol,Down_Symbol),\n        Starting_Symbol=Down_Symbol,IF(MOD(DP9,2)=1,Down_Symbol,Up_Symbol)),\"\"),\n\n\"\")","v":""},{"$f":"IFERROR(\nIF((_xlfn.ANCHORARRAY($F11)>=MIN(_xlfn.VSTACK(_xlfn._xlws.FILTER(Data[Adj Close],#REF!=DQ$9),IFERROR(_xlfn._xlws.FILTER(Data[Adj Close],#REF!=DQ$9),\"\"))))\n     *(_xlfn.ANCHORARRAY($E11)<=MAX(_xlfn.VSTACK(_xlfn._xlws.FILTER(Data[Adj Close],#REF!=DQ$9),IFERROR(_xlfn._xlws.FILTER(Data[Adj Close],#REF!=DQ$9),\"\")))),\n\n_xlfn.IFS(Starting_Symbol=Up_Symbol,IF(MOD(DQ9,2)=1,Up_Symbol,Down_Symbol),\n        Starting_Symbol=Down_Symbol,IF(MOD(DQ9,2)=1,Down_Symbol,Up_Symbol)),\"\"),\n\n\"\")","v":""},{"$f":"IFERROR(\nIF((_xlfn.ANCHORARRAY($F11)>=MIN(_xlfn.VSTACK(_xlfn._xlws.FILTER(Data[Adj Close],#REF!=DR$9),IFERROR(_xlfn._xlws.FILTER(Data[Adj Close],#REF!=DR$9),\"\"))))\n     *(_xlfn.ANCHORARRAY($E11)<=MAX(_xlfn.VSTACK(_xlfn._xlws.FILTER(Data[Adj Close],#REF!=DR$9),IFERROR(_xlfn._xlws.FILTER(Data[Adj Close],#REF!=DR$9),\"\")))),\n\n_xlfn.IFS(Starting_Symbol=Up_Symbol,IF(MOD(DR9,2)=1,Up_Symbol,Down_Symbol),\n        Starting_Symbol=Down_Symbol,IF(MOD(DR9,2)=1,Down_Symbol,Up_Symbol)),\"\"),\n\n\"\")","v":""},{"$f":"IFERROR(\nIF((_xlfn.ANCHORARRAY($F11)>=MIN(_xlfn.VSTACK(_xlfn._xlws.FILTER(Data[Adj Close],#REF!=DS$9),IFERROR(_xlfn._xlws.FILTER(Data[Adj Close],#REF!=DS$9),\"\"))))\n     *(_xlfn.ANCHORARRAY($E11)<=MAX(_xlfn.VSTACK(_xlfn._xlws.FILTER(Data[Adj Close],#REF!=DS$9),IFERROR(_xlfn._xlws.FILTER(Data[Adj Close],#REF!=DS$9),\"\")))),\n\n_xlfn.IFS(Starting_Symbol=Up_Symbol,IF(MOD(DS9,2)=1,Up_Symbol,Down_Symbol),\n        Starting_Symbol=Down_Symbol,IF(MOD(DS9,2)=1,Down_Symbol,Up_Symbol)),\"\"),\n\n\"\")","v":""},{"$f":"IFERROR(\nIF((_xlfn.ANCHORARRAY($F11)>=MIN(_xlfn.VSTACK(_xlfn._xlws.FILTER(Data[Adj Close],#REF!=DT$9),IFERROR(_xlfn._xlws.FILTER(Data[Adj Close],#REF!=DT$9),\"\"))))\n     *(_xlfn.ANCHORARRAY($E11)<=MAX(_xlfn.VSTACK(_xlfn._xlws.FILTER(Data[Adj Close],#REF!=DT$9),IFERROR(_xlfn._xlws.FILTER(Data[Adj Close],#REF!=DT$9),\"\")))),\n\n_xlfn.IFS(Starting_Symbol=Up_Symbol,IF(MOD(DT9,2)=1,Up_Symbol,Down_Symbol),\n        Starting_Symbol=Down_Symbol,IF(MOD(DT9,2)=1,Down_Symbol,Up_Symbol)),\"\"),\n\n\"\")","v":""},{"$f":"IFERROR(\nIF((_xlfn.ANCHORARRAY($F11)>=MIN(_xlfn.VSTACK(_xlfn._xlws.FILTER(Data[Adj Close],#REF!=DU$9),IFERROR(_xlfn._xlws.FILTER(Data[Adj Close],#REF!=DU$9),\"\"))))\n     *(_xlfn.ANCHORARRAY($E11)<=MAX(_xlfn.VSTACK(_xlfn._xlws.FILTER(Data[Adj Close],#REF!=DU$9),IFERROR(_xlfn._xlws.FILTER(Data[Adj Close],#REF!=DU$9),\"\")))),\n\n_xlfn.IFS(Starting_Symbol=Up_Symbol,IF(MOD(DU9,2)=1,Up_Symbol,Down_Symbol),\n        Starting_Symbol=Down_Symbol,IF(MOD(DU9,2)=1,Down_Symbol,Up_Symbol)),\"\"),\n\n\"\")","v":""},{"$f":"IFERROR(\nIF((_xlfn.ANCHORARRAY($F11)>=MIN(_xlfn.VSTACK(_xlfn._xlws.FILTER(Data[Adj Close],#REF!=DV$9),IFERROR(_xlfn._xlws.FILTER(Data[Adj Close],#REF!=DV$9),\"\"))))\n     *(_xlfn.ANCHORARRAY($E11)<=MAX(_xlfn.VSTACK(_xlfn._xlws.FILTER(Data[Adj Close],#REF!=DV$9),IFERROR(_xlfn._xlws.FILTER(Data[Adj Close],#REF!=DV$9),\"\")))),\n\n_xlfn.IFS(Starting_Symbol=Up_Symbol,IF(MOD(DV9,2)=1,Up_Symbol,Down_Symbol),\n        Starting_Symbol=Down_Symbol,IF(MOD(DV9,2)=1,Down_Symbol,Up_Symbol)),\"\"),\n\n\"\")","v":""},{"$f":"IFERROR(\nIF((_xlfn.ANCHORARRAY($F11)>=MIN(_xlfn.VSTACK(_xlfn._xlws.FILTER(Data[Adj Close],#REF!=DW$9),IFERROR(_xlfn._xlws.FILTER(Data[Adj Close],#REF!=DW$9),\"\"))))\n     *(_xlfn.ANCHORARRAY($E11)<=MAX(_xlfn.VSTACK(_xlfn._xlws.FILTER(Data[Adj Close],#REF!=DW$9),IFERROR(_xlfn._xlws.FILTER(Data[Adj Close],#REF!=DW$9),\"\")))),\n\n_xlfn.IFS(Starting_Symbol=Up_Symbol,IF(MOD(DW9,2)=1,Up_Symbol,Down_Symbol),\n        Starting_Symbol=Down_Symbol,IF(MOD(DW9,2)=1,Down_Symbol,Up_Symbol)),\"\"),\n\n\"\")","v":""},{"$f":"IFERROR(\nIF((_xlfn.ANCHORARRAY($F11)>=MIN(_xlfn.VSTACK(_xlfn._xlws.FILTER(Data[Adj Close],#REF!=DX$9),IFERROR(_xlfn._xlws.FILTER(Data[Adj Close],#REF!=DX$9),\"\"))))\n     *(_xlfn.ANCHORARRAY($E11)<=MAX(_xlfn.VSTACK(_xlfn._xlws.FILTER(Data[Adj Close],#REF!=DX$9),IFERROR(_xlfn._xlws.FILTER(Data[Adj Close],#REF!=DX$9),\"\")))),\n\n_xlfn.IFS(Starting_Symbol=Up_Symbol,IF(MOD(DX9,2)=1,Up_Symbol,Down_Symbol),\n        Starting_Symbol=Down_Symbol,IF(MOD(DX9,2)=1,Down_Symbol,Up_Symbol)),\"\"),\n\n\"\")","v":""},{"$f":"IFERROR(\nIF((_xlfn.ANCHORARRAY($F11)>=MIN(_xlfn.VSTACK(_xlfn._xlws.FILTER(Data[Adj Close],#REF!=DY$9),IFERROR(_xlfn._xlws.FILTER(Data[Adj Close],#REF!=DY$9),\"\"))))\n     *(_xlfn.ANCHORARRAY($E11)<=MAX(_xlfn.VSTACK(_xlfn._xlws.FILTER(Data[Adj Close],#REF!=DY$9),IFERROR(_xlfn._xlws.FILTER(Data[Adj Close],#REF!=DY$9),\"\")))),\n\n_xlfn.IFS(Starting_Symbol=Up_Symbol,IF(MOD(DY9,2)=1,Up_Symbol,Down_Symbol),\n        Starting_Symbol=Down_Symbol,IF(MOD(DY9,2)=1,Down_Symbol,Up_Symbol)),\"\"),\n\n\"\")","v":""},{"$f":"IFERROR(\nIF((_xlfn.ANCHORARRAY($F11)>=MIN(_xlfn.VSTACK(_xlfn._xlws.FILTER(Data[Adj Close],#REF!=DZ$9),IFERROR(_xlfn._xlws.FILTER(Data[Adj Close],#REF!=DZ$9),\"\"))))\n     *(_xlfn.ANCHORARRAY($E11)<=MAX(_xlfn.VSTACK(_xlfn._xlws.FILTER(Data[Adj Close],#REF!=DZ$9),IFERROR(_xlfn._xlws.FILTER(Data[Adj Close],#REF!=DZ$9),\"\")))),\n\n_xlfn.IFS(Starting_Symbol=Up_Symbol,IF(MOD(DZ9,2)=1,Up_Symbol,Down_Symbol),\n        Starting_Symbol=Down_Symbol,IF(MOD(DZ9,2)=1,Down_Symbol,Up_Symbol)),\"\"),\n\n\"\")","v":""},{"$f":"IFERROR(\nIF((_xlfn.ANCHORARRAY($F11)>=MIN(_xlfn.VSTACK(_xlfn._xlws.FILTER(Data[Adj Close],#REF!=EA$9),IFERROR(_xlfn._xlws.FILTER(Data[Adj Close],#REF!=EA$9),\"\"))))\n     *(_xlfn.ANCHORARRAY($E11)<=MAX(_xlfn.VSTACK(_xlfn._xlws.FILTER(Data[Adj Close],#REF!=EA$9),IFERROR(_xlfn._xlws.FILTER(Data[Adj Close],#REF!=EA$9),\"\")))),\n\n_xlfn.IFS(Starting_Symbol=Up_Symbol,IF(MOD(EA9,2)=1,Up_Symbol,Down_Symbol),\n        Starting_Symbol=Down_Symbol,IF(MOD(EA9,2)=1,Down_Symbol,Up_Symbol)),\"\"),\n\n\"\")","v":""},{"$f":"IFERROR(\nIF((_xlfn.ANCHORARRAY($F11)>=MIN(_xlfn.VSTACK(_xlfn._xlws.FILTER(Data[Adj Close],#REF!=EB$9),IFERROR(_xlfn._xlws.FILTER(Data[Adj Close],#REF!=EB$9),\"\"))))\n     *(_xlfn.ANCHORARRAY($E11)<=MAX(_xlfn.VSTACK(_xlfn._xlws.FILTER(Data[Adj Close],#REF!=EB$9),IFERROR(_xlfn._xlws.FILTER(Data[Adj Close],#REF!=EB$9),\"\")))),\n\n_xlfn.IFS(Starting_Symbol=Up_Symbol,IF(MOD(EB9,2)=1,Up_Symbol,Down_Symbol),\n        Starting_Symbol=Down_Symbol,IF(MOD(EB9,2)=1,Down_Symbol,Up_Symbol)),\"\"),\n\n\"\")","v":""},{"$f":"IFERROR(\nIF((_xlfn.ANCHORARRAY($F11)>=MIN(_xlfn.VSTACK(_xlfn._xlws.FILTER(Data[Adj Close],#REF!=EC$9),IFERROR(_xlfn._xlws.FILTER(Data[Adj Close],#REF!=EC$9),\"\"))))\n     *(_xlfn.ANCHORARRAY($E11)<=MAX(_xlfn.VSTACK(_xlfn._xlws.FILTER(Data[Adj Close],#REF!=EC$9),IFERROR(_xlfn._xlws.FILTER(Data[Adj Close],#REF!=EC$9),\"\")))),\n\n_xlfn.IFS(Starting_Symbol=Up_Symbol,IF(MOD(EC9,2)=1,Up_Symbol,Down_Symbol),\n        Starting_Symbol=Down_Symbol,IF(MOD(EC9,2)=1,Down_Symbol,Up_Symbol)),\"\"),\n\n\"\")","v":""},{"$f":"IFERROR(\nIF((_xlfn.ANCHORARRAY($F11)>=MIN(_xlfn.VSTACK(_xlfn._xlws.FILTER(Data[Adj Close],#REF!=ED$9),IFERROR(_xlfn._xlws.FILTER(Data[Adj Close],#REF!=ED$9),\"\"))))\n     *(_xlfn.ANCHORARRAY($E11)<=MAX(_xlfn.VSTACK(_xlfn._xlws.FILTER(Data[Adj Close],#REF!=ED$9),IFERROR(_xlfn._xlws.FILTER(Data[Adj Close],#REF!=ED$9),\"\")))),\n\n_xlfn.IFS(Starting_Symbol=Up_Symbol,IF(MOD(ED9,2)=1,Up_Symbol,Down_Symbol),\n        Starting_Symbol=Down_Symbol,IF(MOD(ED9,2)=1,Down_Symbol,Up_Symbol)),\"\"),\n\n\"\")","v":""},{"$f":"IFERROR(\nIF((_xlfn.ANCHORARRAY($F11)>=MIN(_xlfn.VSTACK(_xlfn._xlws.FILTER(Data[Adj Close],#REF!=EE$9),IFERROR(_xlfn._xlws.FILTER(Data[Adj Close],#REF!=EE$9),\"\"))))\n     *(_xlfn.ANCHORARRAY($E11)<=MAX(_xlfn.VSTACK(_xlfn._xlws.FILTER(Data[Adj Close],#REF!=EE$9),IFERROR(_xlfn._xlws.FILTER(Data[Adj Close],#REF!=EE$9),\"\")))),\n\n_xlfn.IFS(Starting_Symbol=Up_Symbol,IF(MOD(EE9,2)=1,Up_Symbol,Down_Symbol),\n        Starting_Symbol=Down_Symbol,IF(MOD(EE9,2)=1,Down_Symbol,Up_Symbol)),\"\"),\n\n\"\")","v":""},{"$f":"IFERROR(\nIF((_xlfn.ANCHORARRAY($F11)>=MIN(_xlfn.VSTACK(_xlfn._xlws.FILTER(Data[Adj Close],#REF!=EF$9),IFERROR(_xlfn._xlws.FILTER(Data[Adj Close],#REF!=EF$9),\"\"))))\n     *(_xlfn.ANCHORARRAY($E11)<=MAX(_xlfn.VSTACK(_xlfn._xlws.FILTER(Data[Adj Close],#REF!=EF$9),IFERROR(_xlfn._xlws.FILTER(Data[Adj Close],#REF!=EF$9),\"\")))),\n\n_xlfn.IFS(Starting_Symbol=Up_Symbol,IF(MOD(EF9,2)=1,Up_Symbol,Down_Symbol),\n        Starting_Symbol=Down_Symbol,IF(MOD(EF9,2)=1,Down_Symbol,Up_Symbol)),\"\"),\n\n\"\")","v":""},{"$f":"IFERROR(\nIF((_xlfn.ANCHORARRAY($F11)>=MIN(_xlfn.VSTACK(_xlfn._xlws.FILTER(Data[Adj Close],#REF!=EG$9),IFERROR(_xlfn._xlws.FILTER(Data[Adj Close],#REF!=EG$9),\"\"))))\n     *(_xlfn.ANCHORARRAY($E11)<=MAX(_xlfn.VSTACK(_xlfn._xlws.FILTER(Data[Adj Close],#REF!=EG$9),IFERROR(_xlfn._xlws.FILTER(Data[Adj Close],#REF!=EG$9),\"\")))),\n\n_xlfn.IFS(Starting_Symbol=Up_Symbol,IF(MOD(EG9,2)=1,Up_Symbol,Down_Symbol),\n        Starting_Symbol=Down_Symbol,IF(MOD(EG9,2)=1,Down_Symbol,Up_Symbol)),\"\"),\n\n\"\")","v":""}]

{"sheet":"Error Checks","index":6,"n_rows":17,"n_cols":9,"rows_kept":17,"cut":false,"hidden":false,"merged":[[2,0,2,4]]}
[{"$f":"IF(ISERROR(RIGHT(CELL(\"filename\",A1),LEN(CELL(\"filename\",A1))-FIND(\"]\",CELL(\"filename\",A1)))),\n\"\",\nRIGHT(CELL(\"filename\",A1),LEN(CELL(\"filename\",A1))-FIND(\"]\",CELL(\"filename\",A1))))","v":"Error Checks"}]
[{"$f":"Model_Name","v":"SP Point and Figure Chart - Initial File.xlsm"}]
["Navigator"]
[null,"Error Checks:",null,null,null,{"$f":"Overall_Error_Check","v":0}]
[]
[null,{"$f":"MAX($B$5:$B5)+1","v":1},"Error Checks"]
[]
[null,null,"Summary of Errors"]
[]
[null,null,null,"Assumptions"]
[]
[null,null,null,null,"Example"]
[]
[]
[]
[]
[null,null,null,null,{"$f":"C8","v":"Summary of Errors"},null,null,null,{"$f":"MIN(1,SUM(I11:I15))","v":0}]